Workbook

Sheet Navigation
K7: Kisan Trading Company
L8: Stock and Sales FOR THE PERIOD 01-Jan-2020 TO 31-Mar-2020

Sheet Dealer Report
A1: KISAN TRADING COMPANY
A2: JOBNER ROAD, PHULERA
A3: Dist. - Jaipur (Raj.)
A4: S.L. No.-7/95
A5: P.L.No.1260/97
A6: F.L.No. 1896/02 (W/S)
A7: Contact : 94145-92801 / 73579-11849
A8: Bayer Crop Sciences
A9: Stock Category Summary
A10: 1-Jan-2020 to 31-Mar-2020
B11: Bayer Crop Sciences
B12: KISAN TRADING COMPANY
A13: Particulars | B13: 1-Jan-2020 to 31-Mar-2020
B14: Opening Balance | C14: Inwards | D14: Outwards | E14: Closing Balance
B15: Quantity | C15: Quantity | D15: Quantity | E15: Quantity
A16: Admire (Imida. 70%WG) Bayer_30gm | B16: 44 | D16: 4 | E16: 40
A17: Adue WG70 (Bayer) 40gm
A18: Adue_Bayer_100gm
A19: Aeros (Excel Crop) 500ml. Pck
A20: Alanto (T) SC240 (Bayer)_100ml. | B20: 5 | E20: 5
A21: Aliette WP 80_100gr Pck | B21: 4.7 | D21: 1.2 | E21: 3.5
A22: Aliette Wp 80_250gm Pck | B22: 33 | D22: 21 | E22: 12
A23: Aliette Wp 80_500gm | B23: 7 | D23: 7
A24: Ambition_Bayer_1 Ltr | B24: 1 | D24: 1
A25: Ambition_Bayer_250ml. | B25: 6 | D25: 3.25 | E25: 2.75
A26: Ambition_Bayer_500ml. | C26: 50 | D26: 19.5 | E26: 30.5
A27: ANTRACOL (T) WP70_100GR Pck
A28: Antracol (T) WP70_1KG Pck
A29: Antracol (T) WP70_250gm Pck | B29: 0.25 | C29: 40 | D29: 16.25 | E29: 24
A30: ANTRACOL (T) WP70_500gm Pck | B30: 7 | C30: 20 | D30: 20 | E30: 7
A31: Bayfolan Algae (Bayer)_500ml.
A32: Belt Expert SC480 (Bayer)_100ml. | B32: 58 | C32: 50 | D32: 11 | E32: 97
A33: Confidor SL 200 (Imida. 17.8%SL)_Bayer_1 Ltr | B33: 20 | C33: -20
A34: Confidor SL 200 (Imida. 17.8%SL)_Bayer_250ml. | B34: 2.5 | C34: 5 | D34: 3.5 | E34: 4
A35: Confidor SL 200 (Imida 17.8%SL)_Bayer_500ml. | B35: 17.5 | C35: -10 | D35: 4 | E35: 3.5
A36: Decis 100 (Deltameth.11%EC)_Bayer_250ml.
A37: Decis 100 (Deltamethrin 11% EC)_Bayer_100ml. | B37: 38 | E37: 38
A38: Decis 2.8%EC (Bayer Crop)_100ml. Pck
A39: Decis 2.8%EC (Bayer Crop)_1Ltr Pck | B39: 5 | D39: 2 | E39: 3
A40: Decis 2.8%EC (Bayer Crop)_250ml. Pck | B40: 40 | D40: 29 | E40: 11
A41: Decis 2.8%EC (Bayer Crop)_500ml. Pck | B41: 16 | D41: 16
A42: Evergol (Bayer)_100ml. | B42: 92 | D42: 75 | E42: 17
A43: Evergol (Bayer)_40ml. | B43: 150 | D43: 89 | E43: 61
A44: Fame (Flubendiamide 39.35%)_Bayer_10ml.
A45: Fame (Flubendiamide 39.35%)_Bayer_50ml. | B45: 76 | D45: 12 | E45: 64
A46: Fenos Quick (Fluben.8.33%+Deltame5.56%)_Bayer_250ml
A47: Fitrest (Emame. Benzo. 5% SG)_Bayer_250gm.
A48: Fitrest (Emame. Benzo. 5%SG)_Bayer_50gm.
A49: Folicur 250EC (Tebuconazole 25.9%EC)_Bayer_100ml. | B49: 47 | D49: 23 | E49: 24
A50: Folicur 250EC (Tebuconazole 25.9%EC)_Bayer_1Ltr. | B50: 17 | E50: 17
A51: Folicur 250EC (Tebuconazole 25.9%EC)_Bayer_250ml. | B51: 24 | D51: 12 | E51: 12
A52: Folicur 250EC (Tebuconazole 25.9%EC)_Bayer_500ml. | B52: 16 | D52: 2 | E52: 14
A53: Foost (Atrazine)_Bayer_500gm
A54: Gaucho FS600 (Bayer Crop)_100ml. | B54: 50 | D54: 48 | E54: 2
A55: Gaucho FS600 (Bayer Crop)_250ml. | B55: 36 | D55: 13 | E55: 23
A56: Gaucho FS600 (Bayer Crop)_50ml. | B56: 30 | D56: 30
A57: Gaucho FS600 (Bayer)_9ml.
A58: Hy. Bajra Proagro 9001 (Bayer)_1.5kg Pkt
A59: Hy. Bajra Proagro 9444 (Bayer)_1.5kg Pkt
A60: Hy. Bajra Proagro 9450(Bayer)_1.5kg Pkt
A61: Hy. Mustard Proagro 5222 (Bayer)_1kg Pck
A62: Infinito SC687 (Bayer)_100ml. Pck
A63: Infinito SC687 (Bayer)_500ml. | C63: 10 | E63: 10
A64: Jump (Fipronil 80%WG)_Bayer_2gm Pouch | B64: 1170 | E64: 1170
A65: Jump (Fipronil 80%WG)_Bayer_40gm. | B65: 37 | D65: 20 | E65: 17
A66: Larvin (Thiodicarb 75%WP)_Bayer_100gm. | B66: 19 | D66: 9 | E66: 10
A67: Larvin (Thiodicarb 75%WP)_Bayer_250gm. | B67: 24 | D67: 12 | E67: 12
A68: Laudis SC630 (Bayer)_57.5ml. Pck | B68: 4 | E68: 4
A69: Lesenta (Fipronil 40%+Imida. 40%WG)_Bayer_40gm. | B69: 13 | D69: 13
A70: Lesenta (Fipronil40%+Imida.40%)_Bayer_100gm.
A71: Luna Experience (Bayer) 100ml. Pck | B71: 23 | D71: 8 | E71: 15
A72: Luna Experience SC400 (Bayer)_250ml.
A73: Melody Duo Wp66.8% (Bayer)_100gm Pck | B73: 10 | D73: 7 | E73: 3
A74: Melody Duo Wp66.8% (Bayer)_400gm Pck | B74: 16 | C74: 10 | D74: 16 | E74: 10
A75: Melody Duo WP66.8% (Bayer)_800gm Pck | C75: 10 | E75: 10
A76: Movento Energy SC240 (Bayer)_100ml. | B76: 1 | C76: 50 | D76: 2 | E76: 49
A77: Movento Energy Sc240 (Bayer)_250ml. | B77: 34 | E77: 34
A78: Nativo WG75 (Bayer)_100gm. Pck | B78: 39 | C78: 150 | D78: 109 | E78: 80
A79: Nativo WG75 (Bayer)_250gm. Pck | B79: 32 | C79: 40 | D79: 36 | E79: 36
A80: Nativo WG75 (Bayer)_50gm Pck | B80: 90 | D80: 83 | E80: 7
A81: Oberon (T) SC240 (Bayer)_100ml. Pck | B81: 39 | D81: 20 | E81: 19
A82: Oberon (T) Sc 240 (Bayer)_200ml. Pck | B82: 33 | C82: 40 | D82: 44 | E82: 29
A83: Planofix (Bayer Crop)_100ml. Pck | B83: 155 | D83: 119 | E83: 36
A84: Planofix (Bayer Crop)_250ml. Pck | B84: 29 | E84: 29
A85: Profiler 71.1WG (Bayer)_250gm. | B85: 4 | D85: 4
A86: RAFT (Bayer)_250ml. Pck | B86: 8.25 | D86: 8.25
A87: Raxil (Tebucona. 2%DS)_Bayer_40gm Pkt
A88: Regent GR (Fipronil 0.3%GR)_Bayer_1kg. | B88: 76 | C88: 160 | D88: 147 | E88: 89
A89: Regent GR (Fipronil 0.3%GR)_Bayer_5kg . | B89: 65 | C89: 740 | D89: 440 | E89: 365
A90: Regent SC (Fipronil 5%SC)_Bayer_100ml.
A91: Regent SC (Fipronil 5%SC)_Bayer_1Ltr. | B91: 77 | D91: 3 | E91: 74
A92: Regent SC(Fipronil 5%SC)_Bayer_250ml. | B92: 176 | D92: 42 | E92: 134
A93: Regent SC (Fipronil 5%SC)_Bayer_500ml. | B93: 129 | D93: 28 | E93: 101
A94: Regent Ultra Gr (Bayer)_1kg Pck
A95: Sectin-60WG (Bayer Crop)_100gm Pck | B95: 80 | D95: 20 | E95: 60
A96: Sectin-60WG (Bayer Crop)_600gm Pck | B96: 61 | D96: 13 | E96: 48
A97: Sivanto Prime SL200(Bayer) 250ml. Pck | B97: 5 | D97: 2.5 | E97: 2.5
A98: Sivanto Prime SL200 (Bayer)_500ml.
A99: Solomon OD300 (Bayer)_100ml. Pck | B99: 45 | D99: 18 | E99: 27
A100: Solomon OD300 (Bayer)_250ml. Pck | B100: 76 | D100: 28 | E100: 48
A101: Spintor SC495 (Bayer)_75ml. Pck | B101: 11 | C101: 20 | D101: 22 | E101: 9
A102: Velum Prime (Bayer)_100ml.
A103: Velum Prime (Bayer)_250ml. Pck | B103: 12 | D103: 9.25 | E103: 2.75
A104: Velum Prime (Bayer)_500ml. Pck | B104: 11.5 | D104: 5 | E104: 6.5
A105: Whipsuper EC90 (Bayer)_250ml.
A106: Grand Total | B106: =SUM(B16:B105) -> 3447.7 | C106: =SUM(C16:C105) -> 1365 | D106: 1750.7 | E106: 3062

Sheet Dealer Report working
A1: Particulars | B1: Opening Qty | C1: Purchase Qty | D1: Sales Qty | E1: CLSG | F1: Master Name | K1: Values
A2: Admire (Imida. 70%WG) Bayer_30gm | B2: 44 | D2: 4 | E2: 40 | F2: ADMIRE (T) WG70 150X30GR BOT IN | J2: Row Labels | K2: Sum of Opening Qty | L2: Sum of Purchase Qty | M2: Sum of Sales Qty | N2: Sum of CLSG
A3: Adue WG70 (Bayer) 40gm | F3: ADUE WG70 15X40G BOT IN | J3: ADMIRE (T) WG70 150X30GR BOT IN | K3: 44 | M3: 4 | N3: 40
A4: Adue_Bayer_100gm | F4: ADUE WG70 6X100G BOT IN | J4: ADUE WG70 15X40G BOT IN
A5: Aeros (Excel Crop) 500ml. Pck | F5: DISCOUNTINUE PRODUCT | J5: ADUE WG70 6X100G BOT IN
A6: Alanto (T) SC240 (Bayer)_100ml. | B6: 5 | E6: 5 | F6: ALANTO (T) SC240 50X100ML BOT IN | J6: ALANTO (T) SC240 50X100ML BOT IN | K6: 5 | N6: 5
A7: Aliette WP 80_100gr Pck | B7: 4.7 | D7: 1.2 | E7: 3.5 | F7: ALIETTE WP80 40X100GR BAG IN | J7: ALIETTE WP80 20X250GR BAG IN | K7: 33 | M7: 21 | N7: 12
A8: Aliette Wp 80_250gm Pck | B8: 33 | D8: 21 | E8: 12 | F8: ALIETTE WP80 20X250GR BAG IN | J8: ALIETTE WP80 20X500GR BAG IN | K8: 7 | M8: 7
A9: Aliette Wp 80_500gm | B9: 7 | D9: 7 | F9: ALIETTE WP80 20X500GR BAG IN | J9: ALIETTE WP80 40X100GR BAG IN | K9: 4.7 | M9: 1.2 | N9: 3.5
A10: Ambition_Bayer_1 Ltr | B10: 1 | D10: 1 | F10: AMBITION 10X1L BOT IN | J10: AMBITION 10X1L BOT IN | K10: 1 | M10: 1
A11: Ambition_Bayer_250ml. | B11: 6 | D11: 3.25 | E11: 2.75 | F11: AMBITION 40X250ML BOT IN | J11: AMBITION 20X500ML BOT IN | L11: 50 | M11: 19.5 | N11: 30.5
A12: Ambition_Bayer_500ml. | C12: 50 | D12: 19.5 | E12: 30.5 | F12: AMBITION 20X500ML BOT IN | J12: AMBITION 40X250ML BOT IN | K12: 6 | M12: 3.25 | N12: 2.75
A13: ANTRACOL (T) WP70_100GR Pck | F13: ANTRACOL (T) WP70 50X100GR BAG IN | J13: ANTRACOL (T) WP70 10X1KG BAG IN
A14: Antracol (T) WP70_1KG Pck | F14: ANTRACOL (T) WP70 10X1KG BAG IN | J14: ANTRACOL (T) WP70 20X500GR BAG IN | K14: 7 | L14: 20 | M14: 20 | N14: 7
A15: Antracol (T) WP70_250gm Pck | B15: 0.25 | C15: 40 | D15: 16.25 | E15: 24 | F15: ANTRACOL (T) WP70 40X250GR BAG IN | J15: ANTRACOL (T) WP70 40X250GR BAG IN | K15: 0.25 | L15: 40 | M15: 16.25 | N15: 24
A16: ANTRACOL (T) WP70_500gm Pck | B16: 7 | C16: 20 | D16: 20 | E16: 7 | F16: ANTRACOL (T) WP70 20X500GR BAG IN | J16: ANTRACOL (T) WP70 50X100GR BAG IN
A17: Bayfolan Algae (Bayer)_500ml. | F17: Not Found | J17: BELT EXPERT SC480 50X100ML BOT IN | K17: 58 | L17: 50 | M17: 11 | N17: 97
A18: Belt Expert SC480 (Bayer)_100ml. | B18: 58 | C18: 50 | D18: 11 | E18: 97 | F18: BELT EXPERT SC480 50X100ML BOT IN | J18: CONFIDOR (T) SL200 10X1L BOT IN | K18: 20 | L18: -20
A19: Confidor SL 200 (Imida. 17.8%SL)_Bayer_1 Ltr | B19: 20 | C19: -20 | F19: CONFIDOR (T) SL200 10X1L BOT IN | J19: CONFIDOR (T) SL200 20X250ML BOT IN | K19: 2.5 | L19: 5 | M19: 3.5 | N19: 4
A20: Confidor SL 200 (Imida. 17.8%SL)_Bayer_250ml. | B20: 2.5 | C20: 5 | D20: 3.5 | E20: 4 | F20: CONFIDOR (T) SL200 20X250ML BOT IN | J20: CONFIDOR (T) SL200 20X500ML BOT IN | K20: 17.5 | L20: -10 | M20: 4 | N20: 3.5
A21: Confidor SL 200 (Imida 17.8%SL)_Bayer_500ml. | B21: 17.5 | C21: -10 | D21: 4 | E21: 3.5 | F21: CONFIDOR (T) SL200 20X500ML BOT IN | J21: DECIS EC 28 10X1L BOT IN | K21: 5 | M21: 2 | N21: 3
A22: Decis 100 (Deltameth.11%EC)_Bayer_250ml. | F22: DECIS EC101-2 40X250ML BOT IN | J22: DECIS EC 28 20X500ML BOT IN | K22: 16 | M22: 16
A23: Decis 100 (Deltamethrin 11% EC)_Bayer_100ml. | B23: 38 | E23: 38 | F23: DECIS EC101-2 50X100ML BOX IN | J23: DECIS EC 28 40X250ML BOT IN | K23: 40 | M23: 29 | N23: 11
A24: Decis 2.8%EC (Bayer Crop)_100ml. Pck | F24: DECIS EC 28 50X100ML BOT IN | J24: DECIS EC 28 50X100ML BOT IN
A25: Decis 2.8%EC (Bayer Crop)_1Ltr Pck | B25: 5 | D25: 2 | E25: 3 | F25: DECIS EC 28 10X1L BOT IN | J25: DECIS EC101-2 40X250ML BOT IN
A26: Decis 2.8%EC (Bayer Crop)_250ml. Pck | B26: 40 | D26: 29 | E26: 11 | F26: DECIS EC 28 40X250ML BOT IN | J26: DECIS EC101-2 50X100ML BOX IN | K26: 38 | N26: 38
A27: Decis 2.8%EC (Bayer Crop)_500ml. Pck | B27: 16 | D27: 16 | F27: DECIS EC 28 20X500ML BOT IN | J27: DISCOUNTINUE PRODUCT
A28: Evergol (Bayer)_100ml. | B28: 92 | D28: 75 | E28: 17 | F28: EVERGOL XTEND FS308 50X100ML BOT IN | J28: EVERGOL XTEND FS308 100X40ML BOT IN | K28: 150 | M28: 89 | N28: 61
A29: Evergol (Bayer)_40ml. | B29: 150 | D29: 89 | E29: 61 | F29: EVERGOL XTEND FS308 100X40ML BOT IN | J29: EVERGOL XTEND FS308 50X100ML BOT IN | K29: 92 | M29: 75 | N29: 17
A30: Fame (Flubendiamide 39.35%)_Bayer_10ml. | F30: FAME (T) SC480 10X(20X10ML) BOT IN | J30: FAME (T) SC480 10X(20X10ML) BOT IN
A31: Fame (Flubendiamide 39.35%)_Bayer_50ml. | B31: 76 | D31: 12 | E31: 64 | F31: FAME (T) SC480 40X50ML BOT IN | J31: FAME (T) SC480 40X50ML BOT IN | K31: 76 | M31: 12 | N31: 64
A32: Fenos Quick (Fluben.8.33%+Deltame5.56%)_Bayer_250ml | F32: FENOS QUICK SC150 40X250ML BOT IN | J32: FENOS QUICK SC150 40X250ML BOT IN
A33: Fitrest (Emame. Benzo. 5% SG)_Bayer_250gm. | F33: FITREST SG5 16X250GR BOT IN | J33: FITREST SG5 16X250GR BOT IN
A34: Fitrest (Emame. Benzo. 5%SG)_Bayer_50gm. | F34: FITREST SG5 80X50GR BOT IN | J34: FITREST SG5 80X50GR BOT IN
A35: Folicur 250EC (Tebuconazole 25.9%EC)_Bayer_100ml. | B35: 47 | D35: 23 | E35: 24 | F35: FOLICUR (T) EC250 50X100ML BOT IN | J35: FOLICUR (T) EC250 10X1L BOT IN | K35: 17 | N35: 17
A36: Folicur 250EC (Tebuconazole 25.9%EC)_Bayer_1Ltr. | B36: 17 | E36: 17 | F36: FOLICUR (T) EC250 10X1L BOT IN | J36: FOLICUR (T) EC250 20X500ML BOT IN | K36: 16 | M36: 2 | N36: 14
A37: Folicur 250EC (Tebuconazole 25.9%EC)_Bayer_250ml. | B37: 24 | D37: 12 | E37: 12 | F37: FOLICUR (T) EC250 40X250ML BOT IN | J37: FOLICUR (T) EC250 40X250ML BOT IN | K37: 24 | M37: 12 | N37: 12
A38: Folicur 250EC (Tebuconazole 25.9%EC)_Bayer_500ml. | B38: 16 | D38: 2 | E38: 14 | F38: FOLICUR (T) EC250 20X500ML BOT IN | J38: FOLICUR (T) EC250 50X100ML BOT IN | K38: 47 | M38: 23 | N38: 24
A39: Foost (Atrazine)_Bayer_500gm | F39: FOOST WP50 24X500G BAG IN | J39: FOOST WP50 24X500G BAG IN
A40: Gaucho FS600 (Bayer Crop)_100ml. | B40: 50 | D40: 48 | E40: 2 | F40: GAUCHO FS600 50X100ML BOT IN | J40: GAUCHO FS600 100X50ML BOT IN | K40: 30 | M40: 30
A41: Gaucho FS600 (Bayer Crop)_250ml. | B41: 36 | D41: 13 | E41: 23 | F41: GAUCHO FS600 40X250ML BOT IN | J41: GAUCHO FS600 40X250ML BOT IN | K41: 36 | M41: 13 | N41: 23
A42: Gaucho FS600 (Bayer Crop)_50ml. | B42: 30 | D42: 30 | F42: GAUCHO FS600 100X50ML BOT IN | J42: GAUCHO FS600 50X100ML BOT IN | K42: 50 | M42: 48 | N42: 2
A43: Gaucho FS600 (Bayer)_9ml. | F43: GAUCHO FS600 5X(20X9)ML BOT IN | J43: GAUCHO FS600 5X(20X9)ML BOT IN
A44: Hy. Bajra Proagro 9001 (Bayer)_1.5kg Pkt | F44: MILLET HYBRID 9001 20X1.5 BAG IN | J44: INFINITO SC687 5 20X500ML BOT IN | L44: 10 | N44: 10
A45: Hy. Bajra Proagro 9444 (Bayer)_1.5kg Pkt | F45: MILLET HYBRID 9444 20X1.5KG BAG IN | J45: INFINITO SC687 5 50X100ML BOT IN
A46: Hy. Bajra Proagro 9450(Bayer)_1.5kg Pkt | F46: MILLET HYBRID 9450 20X1 5KG BAG IN | J46: JUMP WG80 160X(10X2GR) BAG IN | K46: 1170 | N46: 1170
A47: Hy. Mustard Proagro 5222 (Bayer)_1kg Pck | F47: MUSTARD 5222 30X1KG BAG IN | J47: JUMP WG80 80X40GR BAG IN | K47: 37 | M47: 20 | N47: 17
A48: Infinito SC687 (Bayer)_100ml. Pck | F48: INFINITO SC687 5 50X100ML BOT IN | J48: LARVIN (T) WP75 20X250GR BAG IN | K48: 24 | M48: 12 | N48: 12
A49: Infinito SC687 (Bayer)_500ml. | C49: 10 | E49: 10 | F49: INFINITO SC687 5 20X500ML BOT IN | J49: LARVIN (T) WP75 40X100GR BAG IN | K49: 19 | M49: 9 | N49: 10
A50: Jump (Fipronil 80%WG)_Bayer_2gm Pouch | B50: 1170 | E50: 1170 | F50: JUMP WG80 160X(10X2GR) BAG IN | J50: LAUDIS SC630 10X57.5ML BOT IN | K50: 4 | N50: 4
A51: Jump (Fipronil 80%WG)_Bayer_40gm. | B51: 37 | D51: 20 | E51: 17 | F51: JUMP WG80 80X40GR BAG IN | J51: LESENTA WG80 100X40GR BAG IN | K51: 13 | M51: 13
A52: Larvin (Thiodicarb 75%WP)_Bayer_100gm. | B52: 19 | D52: 9 | E52: 10 | F52: LARVIN (T) WP75 40X100GR BAG IN | J52: LESENTA WG80 50X100GR BAG IN
A53: Larvin (Thiodicarb 75%WP)_Bayer_250gm. | B53: 24 | D53: 12 | E53: 12 | F53: LARVIN (T) WP75 20X250GR BAG IN | J53: LUNA EXPERIENCE SC400 40X250ML BOT IN
A54: Laudis SC630 (Bayer)_57.5ml. Pck | B54: 4 | E54: 4 | F54: LAUDIS SC630 10X57.5ML BOT IN | J54: LUNA EXPERIENCE SC400 50X100ML BOT IN | K54: 23 | M54: 8 | N54: 15
A55: Lesenta (Fipronil 40%+Imida. 40%WG)_Bayer_40gm. | B55: 13 | D55: 13 | F55: LESENTA WG80 100X40GR BAG IN | J55: MELODY DUO WP66 8 10X400GR BAG IN | K55: 16 | L55: 10 | M55: 16 | N55: 10
A56: Lesenta (Fipronil40%+Imida.40%)_Bayer_100gm. | F56: LESENTA WG80 50X100GR BAG IN | J56: MELODY DUO WP66 8 10X800G BAG IN | L56: 10 | N56: 10
A57: Luna Experience (Bayer) 100ml. Pck | B57: 23 | D57: 8 | E57: 15 | F57: LUNA EXPERIENCE SC400 50X100ML BOT IN | J57: MELODY DUO WP66 8 50X100GR BAG IN | K57: 10 | M57: 7 | N57: 3
A58: Luna Experience SC400 (Bayer)_250ml. | F58: LUNA EXPERIENCE SC400 40X250ML BOT IN | J58: MILLET HYBRID 9001 20X1.5 BAG IN
A59: Melody Duo Wp66.8% (Bayer)_100gm Pck | B59: 10 | D59: 7 | E59: 3 | F59: MELODY DUO WP66 8 50X100GR BAG IN | J59: MILLET HYBRID 9444 20X1.5KG BAG IN
A60: Melody Duo Wp66.8% (Bayer)_400gm Pck | B60: 16 | C60: 10 | D60: 16 | E60: 10 | F60: MELODY DUO WP66 8 10X400GR BAG IN | J60: MILLET HYBRID 9450 20X1 5KG BAG IN
A61: Melody Duo WP66.8% (Bayer)_800gm Pck | C61: 10 | E61: 10 | F61: MELODY DUO WP66 8 10X800G BAG IN | J61: MOVENTO ENERGY SC240 40X250ML BOT IN | K61: 34 | N61: 34
A62: Movento Energy SC240 (Bayer)_100ml. | B62: 1 | C62: 50 | D62: 2 | E62: 49 | F62: MOVENTO ENERGY SC240 50X100ML BOT IN | J62: MOVENTO ENERGY SC240 50X100ML BOT IN | K62: 1 | L62: 50 | M62: 2 | N62: 49
A63: Movento Energy Sc240 (Bayer)_250ml. | B63: 34 | E63: 34 | F63: MOVENTO ENERGY SC240 40X250ML BOT IN | J63: MUSTARD 5222 30X1KG BAG IN
A64: Nativo WG75 (Bayer)_100gm. Pck | B64: 39 | C64: 150 | D64: 109 | E64: 80 | F64: NATIVO WG75 50X100GR BAG IN | J64: NATIVO WG75 100X50GR BAG IN | K64: 90 | M64: 83 | N64: 7
A65: Nativo WG75 (Bayer)_250gm. Pck | B65: 32 | C65: 40 | D65: 36 | E65: 36 | F65: NATIVO WG75 40X250GR BAG IN | J65: NATIVO WG75 40X250GR BAG IN | K65: 32 | L65: 40 | M65: 36 | N65: 36
A66: Nativo WG75 (Bayer)_50gm Pck | B66: 90 | D66: 83 | E66: 7 | F66: NATIVO WG75 100X50GR BAG IN | J66: NATIVO WG75 50X100GR BAG IN | K66: 39 | L66: 150 | M66: 109 | N66: 80
A67: Oberon (T) SC240 (Bayer)_100ml. Pck | B67: 39 | D67: 20 | E67: 19 | F67: OBERON (T) SC240 50X100ML BOT IN | J67: Not Found
A68: Oberon (T) Sc 240 (Bayer)_200ml. Pck | B68: 33 | C68: 40 | D68: 44 | E68: 29 | F68: OBERON (T) SC240 40X200ML BOT IN | J68: OBERON (T) SC240 40X200ML BOT IN | K68: 33 | L68: 40 | M68: 44 | N68: 29
A69: Planofix (Bayer Crop)_100ml. Pck | B69: 155 | D69: 119 | E69: 36 | F69: PLANOFIX SL4 5 50X100ML BOT IN | J69: OBERON (T) SC240 50X100ML BOT IN | K69: 39 | M69: 20 | N69: 19
A70: Planofix (Bayer Crop)_250ml. Pck | B70: 29 | E70: 29 | F70: PLANOFIX SL4 5 40X250ML BOT IN | J70: PLANOFIX SL4 5 40X250ML BOT IN | K70: 29 | N70: 29
A71: Profiler 71.1WG (Bayer)_250gm. | B71: 4 | D71: 4 | F71: PROFILER WG71 11 20X250GR BAG IN | J71: PLANOFIX SL4 5 50X100ML BOT IN | K71: 155 | M71: 119 | N71: 36
A72: RAFT (Bayer)_250ml. Pck | B72: 8.25 | D72: 8.25 | F72: RAFT EC60 40X250ML BOT IN | J72: PROFILER WG71 11 20X250GR BAG IN | K72: 4 | M72: 4
A73: Raxil (Tebucona. 2%DS)_Bayer_40gm Pkt | F73: RAXIL (T) DS2 5X(25X40GR) BAG IN | J73: RAFT EC60 40X250ML BOT IN | K73: 8.25 | M73: 8.25
A74: Regent GR (Fipronil 0.3%GR)_Bayer_1kg. | B74: 76 | C74: 160 | D74: 147 | E74: 89 | F74: REGENT GR0 3 20X1KG BAG IN | J74: RAXIL (T) DS2 5X(25X40GR) BAG IN
A75: Regent GR (Fipronil 0.3%GR)_Bayer_5kg . | B75: 65 | C75: 740 | D75: 440 | E75: 365 | F75: REGENT GR0 3 4X5KG BAG IN | J75: REGENT (T) SC50 10X1L BOT IN | K75: 77 | M75: 3 | N75: 74
A76: Regent SC (Fipronil 5%SC)_Bayer_100ml. | F76: REGENT (T) SC50 50X100ML BOT IN | J76: REGENT (T) SC50 20X250ML BOT IN | K76: 176 | M76: 42 | N76: 134
A77: Regent SC (Fipronil 5%SC)_Bayer_1Ltr. | B77: 77 | D77: 3 | E77: 74 | F77: REGENT (T) SC50 10X1L BOT IN | J77: REGENT (T) SC50 20X500ML BOT IN | K77: 129 | M77: 28 | N77: 101
A78: Regent SC(Fipronil 5%SC)_Bayer_250ml. | B78: 176 | D78: 42 | E78: 134 | F78: REGENT (T) SC50 20X250ML BOT IN | J78: REGENT (T) SC50 50X100ML BOT IN
A79: Regent SC (Fipronil 5%SC)_Bayer_500ml. | B79: 129 | D79: 28 | E79: 101 | F79: REGENT (T) SC50 20X500ML BOT IN | J79: REGENT GR0 3 20X1KG BAG IN | K79: 76 | L79: 160 | M79: 147 | N79: 89
A80: Regent Ultra Gr (Bayer)_1kg Pck | F80: REGENT ULTRA GR0 6 20X1KG BAG IN | J80: REGENT GR0 3 4X5KG BAG IN | K80: 65 | L80: 740 | M80: 440 | N80: 365
A81: Sectin-60WG (Bayer Crop)_100gm Pck | B81: 80 | D81: 20 | E81: 60 | F81: SECTIN WG60 50X100GR BAG IN | J81: REGENT ULTRA GR0 6 20X1KG BAG IN
A82: Sectin-60WG (Bayer Crop)_600gm Pck | B82: 61 | D82: 13 | E82: 48 | F82: SECTIN WG60 20X600GR BAG IN | J82: SECTIN WG60 20X600GR BAG IN | K82: 61 | M82: 13 | N82: 48
A83: Sivanto Prime SL200(Bayer) 250ml. Pck | B83: 5 | D83: 2.5 | E83: 2.5 | F83: SIVANTO PRIME SL200 40X250ML BOT IN | J83: SECTIN WG60 50X100GR BAG IN | K83: 80 | M83: 20 | N83: 60
A84: Sivanto Prime SL200 (Bayer)_500ml. | F84: SIVANTO PRIME SL200 20X500ML BOT IN | J84: SIVANTO PRIME SL200 20X500ML BOT IN
A85: Solomon OD300 (Bayer)_100ml. Pck | B85: 45 | D85: 18 | E85: 27 | F85: SOLOMON OD300 50X100ML BOT IN | J85: SIVANTO PRIME SL200 40X250ML BOT IN | K85: 5 | M85: 2.5 | N85: 2.5
A86: Solomon OD300 (Bayer)_250ml. Pck | B86: 76 | D86: 28 | E86: 48 | F86: SOLOMON OD300 40X250ML BOT IN | J86: SOLOMON OD300 40X250ML BOT IN | K86: 76 | M86: 28 | N86: 48
A87: Spintor SC495 (Bayer)_75ml. Pck | B87: 11 | C87: 20 | D87: 22 | E87: 9 | F87: SPINTOR SC495 20X75ML BOT IN | J87: SOLOMON OD300 50X100ML BOT IN | K87: 45 | M87: 18 | N87: 27
A88: Velum Prime (Bayer)_100ml. | F88: VELUM PRIME SC400 50X100ML BOT IN | J88: SPINTOR SC495 20X75ML BOT IN | K88: 11 | L88: 20 | M88: 22 | N88: 9
A89: Velum Prime (Bayer)_250ml. Pck | B89: 12 | D89: 9.25 | E89: 2.75 | F89: VELUM PRIME SC400 40X250ML BOT IN | J89: VELUM PRIME SC400 20X500ML BOT IN | K89: 11.5 | M89: 5 | N89: 6.5
A90: Velum Prime (Bayer)_500ml. Pck | B90: 11.5 | D90: 5 | E90: 6.5 | F90: VELUM PRIME SC400 20X500ML BOT IN | J90: VELUM PRIME SC400 40X250ML BOT IN | K90: 12 | M90: 9.25 | N90: 2.75
A91: Whipsuper EC90 (Bayer)_250ml. | F91: WHIPSUPER (T) EC90 40X250ML BOT IN | J91: VELUM PRIME SC400 50X100ML BOT IN
J92: WHIPSUPER (T) EC90 40X250ML BOT IN
J93: Grand Total | K93: 3447.7 | L93: 1365 | M93: 1750.7 | N93: 3062

Sheet Master
A1: Item Details | B1: Master Name
A2: Admire (Imida. 70%WG) Bayer_30gm | B2: =VLOOKUP(A2,'[3]Shraddha Mane_ProductLink_2021J'!$D$9:$H$179,5,0) -> ADMIRE (T) WG70 150X30GR BOT IN
A3: Adue WG70 (Bayer) 40gm | B3: =VLOOKUP(A3,'[3]Shraddha Mane_ProductLink_2021J'!$D$9:$H$179,5,0) -> ADUE WG70 15X40G BOT IN
A4: Adue_Bayer_100gm | B4: =VLOOKUP(A4,'[3]Shraddha Mane_ProductLink_2021J'!$D$9:$H$179,5,0) -> ADUE WG70 6X100G BOT IN
A5: Aeros (Excel Crop) 500ml. Pck | B5: =VLOOKUP(A5,'[3]Shraddha Mane_ProductLink_2021J'!$D$9:$H$179,5,0) -> DISCOUNTINUE PRODUCT
A6: Alanto (T) SC240 (Bayer)_100ml. | B6: =VLOOKUP(A6,'[3]Shraddha Mane_ProductLink_2021J'!$D$9:$H$179,5,0) -> ALANTO (T) SC240 50X100ML BOT IN
A7: Aliette WP 80_100gr Pck | B7: =VLOOKUP(A7,'[3]Shraddha Mane_ProductLink_2021J'!$D$9:$H$179,5,0) -> ALIETTE WP80 40X100GR BAG IN
A8: Aliette Wp 80_250gm Pck | B8: =VLOOKUP(A8,'[3]Shraddha Mane_ProductLink_2021J'!$D$9:$H$179,5,0) -> ALIETTE WP80 20X250GR BAG IN
A9: Aliette Wp 80_500gm | B9: =VLOOKUP(A9,'[3]Shraddha Mane_ProductLink_2021J'!$D$9:$H$179,5,0) -> ALIETTE WP80 20X500GR BAG IN
A10: Ambition_Bayer_1 Ltr | B10: =VLOOKUP(A10,'[3]Shraddha Mane_ProductLink_2021J'!$D$9:$H$179,5,0) -> AMBITION 10X1L BOT IN
A11: Ambition_Bayer_250ml. | B11: =VLOOKUP(A11,'[3]Shraddha Mane_ProductLink_2021J'!$D$9:$H$179,5,0) -> AMBITION 40X250ML BOT IN
A12: Ambition_Bayer_500ml. | B12: =VLOOKUP(A12,'[3]Shraddha Mane_ProductLink_2021J'!$D$9:$H$179,5,0) -> AMBITION 20X500ML BOT IN
A13: ANTRACOL (T) WP70_100GR Pck | B13: =VLOOKUP(A13,'[3]Shraddha Mane_ProductLink_2021J'!$D$9:$H$179,5,0) -> ANTRACOL (T) WP70 50X100GR BAG IN
A14: Antracol (T) WP70_1KG Pck | B14: =VLOOKUP(A14,'[3]Shraddha Mane_ProductLink_2021J'!$D$9:$H$179,5,0) -> ANTRACOL (T) WP70 10X1KG BAG IN
A15: Antracol (T) WP70_250gm Pck | B15: =VLOOKUP(A15,'[3]Shraddha Mane_ProductLink_2021J'!$D$9:$H$179,5,0) -> ANTRACOL (T) WP70 40X250GR BAG IN
A16: ANTRACOL (T) WP70_500gm Pck | B16: =VLOOKUP(A16,'[3]Shraddha Mane_ProductLink_2021J'!$D$9:$H$179,5,0) -> ANTRACOL (T) WP70 20X500GR BAG IN
A17: Bayfolan Algae (Bayer)_500ml. | B17: =VLOOKUP(A17,'[3]Shraddha Mane_ProductLink_2021J'!$D$9:$H$179,5,0) -> Not Found
A18: Belt Expert SC480 (Bayer)_100ml. | B18: =VLOOKUP(A18,'[3]Shraddha Mane_ProductLink_2021J'!$D$9:$H$179,5,0) -> BELT EXPERT SC480 50X100ML BOT IN
A19: Confidor SL 200 (Imida. 17.8%SL)_Bayer_1 Ltr | B19: =VLOOKUP(A19,'[3]Shraddha Mane_ProductLink_2021J'!$D$9:$H$179,5,0) -> CONFIDOR (T) SL200 10X1L BOT IN
A20: Confidor SL 200 (Imida. 17.8%SL)_Bayer_250ml. | B20: =VLOOKUP(A20,'[3]Shraddha Mane_ProductLink_2021J'!$D$9:$H$179,5,0) -> CONFIDOR (T) SL200 20X250ML BOT IN
A21: Confidor SL 200 (Imida 17.8%SL)_Bayer_500ml. | B21: =VLOOKUP(A21,'[3]Shraddha Mane_ProductLink_2021J'!$D$9:$H$179,5,0) -> CONFIDOR (T) SL200 20X500ML BOT IN
A22: Decis 100 (Deltameth.11%EC)_Bayer_250ml. | B22: =VLOOKUP(A22,'[3]Shraddha Mane_ProductLink_2021J'!$D$9:$H$179,5,0) -> DECIS EC101-2 40X250ML BOT IN
A23: Decis 100 (Deltamethrin 11% EC)_Bayer_100ml. | B23: =VLOOKUP(A23,'[3]Shraddha Mane_ProductLink_2021J'!$D$9:$H$179,5,0) -> DECIS EC101-2 50X100ML BOX IN
A24: Decis 2.8%EC (Bayer Crop)_100ml. Pck | B24: =VLOOKUP(A24,'[3]Shraddha Mane_ProductLink_2021J'!$D$9:$H$179,5,0) -> DECIS EC 28 50X100ML BOT IN
A25: Decis 2.8%EC (Bayer Crop)_1Ltr Pck | B25: =VLOOKUP(A25,'[3]Shraddha Mane_ProductLink_2021J'!$D$9:$H$179,5,0) -> DECIS EC 28 10X1L BOT IN
A26: Decis 2.8%EC (Bayer Crop)_250ml. Pck | B26: =VLOOKUP(A26,'[3]Shraddha Mane_ProductLink_2021J'!$D$9:$H$179,5,0) -> DECIS EC 28 40X250ML BOT IN
A27: Decis 2.8%EC (Bayer Crop)_500ml. Pck | B27: =VLOOKUP(A27,'[3]Shraddha Mane_ProductLink_2021J'!$D$9:$H$179,5,0) -> DECIS EC 28 20X500ML BOT IN
A28: Evergol (Bayer)_100ml. | B28: =VLOOKUP(A28,'[3]Shraddha Mane_ProductLink_2021J'!$D$9:$H$179,5,0) -> EVERGOL XTEND FS308 50X100ML BOT IN
A29: Evergol (Bayer)_40ml. | B29: =VLOOKUP(A29,'[3]Shraddha Mane_ProductLink_2021J'!$D$9:$H$179,5,0) -> EVERGOL XTEND FS308 100X40ML BOT IN
A30: Fame (Flubendiamide 39.35%)_Bayer_10ml. | B30: =VLOOKUP(A30,'[3]Shraddha Mane_ProductLink_2021J'!$D$9:$H$179,5,0) -> FAME (T) SC480 10X(20X10ML) BOT IN
A31: Fame (Flubendiamide 39.35%)_Bayer_50ml. | B31: =VLOOKUP(A31,'[3]Shraddha Mane_ProductLink_2021J'!$D$9:$H$179,5,0) -> FAME (T) SC480 40X50ML BOT IN
A32: Fenos Quick (Fluben.8.33%+Deltame5.56%)_Bayer_250ml | B32: =VLOOKUP(A32,'[3]Shraddha Mane_ProductLink_2021J'!$D$9:$H$179,5,0) -> FENOS QUICK SC150 40X250ML BOT IN
A33: Fitrest (Emame. Benzo. 5% SG)_Bayer_250gm. | B33: =VLOOKUP(A33,'[3]Shraddha Mane_ProductLink_2021J'!$D$9:$H$179,5,0) -> FITREST SG5 16X250GR BOT IN
A34: Fitrest (Emame. Benzo. 5%SG)_Bayer_50gm. | B34: =VLOOKUP(A34,'[3]Shraddha Mane_ProductLink_2021J'!$D$9:$H$179,5,0) -> FITREST SG5 80X50GR BOT IN
A35: Folicur 250EC (Tebuconazole 25.9%EC)_Bayer_100ml. | B35: =VLOOKUP(A35,'[3]Shraddha Mane_ProductLink_2021J'!$D$9:$H$179,5,0) -> FOLICUR (T) EC250 50X100ML BOT IN
A36: Folicur 250EC (Tebuconazole 25.9%EC)_Bayer_1Ltr. | B36: =VLOOKUP(A36,'[3]Shraddha Mane_ProductLink_2021J'!$D$9:$H$179,5,0) -> FOLICUR (T) EC250 10X1L BOT IN
A37: Folicur 250EC (Tebuconazole 25.9%EC)_Bayer_250ml. | B37: =VLOOKUP(A37,'[3]Shraddha Mane_ProductLink_2021J'!$D$9:$H$179,5,0) -> FOLICUR (T) EC250 40X250ML BOT IN
A38: Folicur 250EC (Tebuconazole 25.9%EC)_Bayer_500ml. | B38: =VLOOKUP(A38,'[3]Shraddha Mane_ProductLink_2021J'!$D$9:$H$179,5,0) -> FOLICUR (T) EC250 20X500ML BOT IN
A39: Foost (Atrazine)_Bayer_500gm | B39: =VLOOKUP(A39,'[3]Shraddha Mane_ProductLink_2021J'!$D$9:$H$179,5,0) -> FOOST WP50 24X500G BAG IN
A40: Gaucho FS600 (Bayer Crop)_100ml. | B40: =VLOOKUP(A40,'[3]Shraddha Mane_ProductLink_2021J'!$D$9:$H$179,5,0) -> GAUCHO FS600 50X100ML BOT IN
A41: Gaucho FS600 (Bayer Crop)_250ml. | B41: =VLOOKUP(A41,'[3]Shraddha Mane_ProductLink_2021J'!$D$9:$H$179,5,0) -> GAUCHO FS600 40X250ML BOT IN
A42: Gaucho FS600 (Bayer Crop)_50ml. | B42: =VLOOKUP(A42,'[3]Shraddha Mane_ProductLink_2021J'!$D$9:$H$179,5,0) -> GAUCHO FS600 100X50ML BOT IN
A43: Gaucho FS600 (Bayer)_9ml. | B43: =VLOOKUP(A43,'[3]Shraddha Mane_ProductLink_2021J'!$D$9:$H$179,5,0) -> GAUCHO FS600 5X(20X9)ML BOT IN
A44: Hy. Bajra Proagro 9001 (Bayer)_1.5kg Pkt | B44: =VLOOKUP(A44,'[3]Shraddha Mane_ProductLink_2021J'!$D$9:$H$179,5,0) -> MILLET HYBRID 9001 20X1.5 BAG IN
A45: Hy. Bajra Proagro 9444 (Bayer)_1.5kg Pkt | B45: =VLOOKUP(A45,'[3]Shraddha Mane_ProductLink_2021J'!$D$9:$H$179,5,0) -> MILLET HYBRID 9444 20X1.5KG BAG IN
A46: Hy. Bajra Proagro 9450(Bayer)_1.5kg Pkt | B46: =VLOOKUP(A46,'[3]Shraddha Mane_ProductLink_2021J'!$D$9:$H$179,5,0) -> MILLET HYBRID 9450 20X1 5KG BAG IN
A47: Hy. Mustard Proagro 5222 (Bayer)_1kg Pck | B47: =VLOOKUP(A47,'[3]Shraddha Mane_ProductLink_2021J'!$D$9:$H$179,5,0) -> MUSTARD 5222 30X1KG BAG IN
A48: Infinito SC687 (Bayer)_100ml. Pck | B48: =VLOOKUP(A48,'[3]Shraddha Mane_ProductLink_2021J'!$D$9:$H$179,5,0) -> INFINITO SC687 5 50X100ML BOT IN
A49: Infinito SC687 (Bayer)_500ml. | B49: =VLOOKUP(A49,'[3]Shraddha Mane_ProductLink_2021J'!$D$9:$H$179,5,0) -> INFINITO SC687 5 20X500ML BOT IN
A50: Jump (Fipronil 80%WG)_Bayer_2gm Pouch | B50: =VLOOKUP(A50,'[3]Shraddha Mane_ProductLink_2021J'!$D$9:$H$179,5,0) -> JUMP WG80 160X(10X2GR) BAG IN
A51: Jump (Fipronil 80%WG)_Bayer_40gm. | B51: =VLOOKUP(A51,'[3]Shraddha Mane_ProductLink_2021J'!$D$9:$H$179,5,0) -> JUMP WG80 80X40GR BAG IN
A52: Larvin (Thiodicarb 75%WP)_Bayer_100gm. | B52: =VLOOKUP(A52,'[3]Shraddha Mane_ProductLink_2021J'!$D$9:$H$179,5,0) -> LARVIN (T) WP75 40X100GR BAG IN
A53: Larvin (Thiodicarb 75%WP)_Bayer_250gm. | B53: =VLOOKUP(A53,'[3]Shraddha Mane_ProductLink_2021J'!$D$9:$H$179,5,0) -> LARVIN (T) WP75 20X250GR BAG IN
A54: Laudis SC630 (Bayer)_57.5ml. Pck | B54: =VLOOKUP(A54,'[3]Shraddha Mane_ProductLink_2021J'!$D$9:$H$179,5,0) -> LAUDIS SC630 10X57.5ML BOT IN
A55: Lesenta (Fipronil 40%+Imida. 40%WG)_Bayer_40gm. | B55: =VLOOKUP(A55,'[3]Shraddha Mane_ProductLink_2021J'!$D$9:$H$179,5,0) -> LESENTA WG80 100X40GR BAG IN
A56: Lesenta (Fipronil40%+Imida.40%)_Bayer_100gm. | B56: =VLOOKUP(A56,'[3]Shraddha Mane_ProductLink_2021J'!$D$9:$H$179,5,0) -> LESENTA WG80 50X100GR BAG IN
A57: Luna Experience (Bayer) 100ml. Pck | B57: =VLOOKUP(A57,'[3]Shraddha Mane_ProductLink_2021J'!$D$9:$H$179,5,0) -> LUNA EXPERIENCE SC400 50X100ML BOT IN
A58: Luna Experience SC400 (Bayer)_250ml. | B58: =VLOOKUP(A58,'[3]Shraddha Mane_ProductLink_2021J'!$D$9:$H$179,5,0) -> LUNA EXPERIENCE SC400 40X250ML BOT IN
A59: Melody Duo Wp66.8% (Bayer)_100gm Pck | B59: =VLOOKUP(A59,'[3]Shraddha Mane_ProductLink_2021J'!$D$9:$H$179,5,0) -> MELODY DUO WP66 8 50X100GR BAG IN
A60: Melody Duo Wp66.8% (Bayer)_400gm Pck | B60: =VLOOKUP(A60,'[3]Shraddha Mane_ProductLink_2021J'!$D$9:$H$179,5,0) -> MELODY DUO WP66 8 10X400GR BAG IN
A61: Melody Duo WP66.8% (Bayer)_800gm Pck | B61: =VLOOKUP(A61,'[3]Shraddha Mane_ProductLink_2021J'!$D$9:$H$179,5,0) -> MELODY DUO WP66 8 10X800G BAG IN
A62: Movento Energy SC240 (Bayer)_100ml. | B62: =VLOOKUP(A62,'[3]Shraddha Mane_ProductLink_2021J'!$D$9:$H$179,5,0) -> MOVENTO ENERGY SC240 50X100ML BOT IN
A63: Movento Energy Sc240 (Bayer)_250ml. | B63: =VLOOKUP(A63,'[3]Shraddha Mane_ProductLink_2021J'!$D$9:$H$179,5,0) -> MOVENTO ENERGY SC240 40X250ML BOT IN
A64: Nativo WG75 (Bayer)_100gm. Pck | B64: =VLOOKUP(A64,'[3]Shraddha Mane_ProductLink_2021J'!$D$9:$H$179,5,0) -> NATIVO WG75 50X100GR BAG IN
A65: Nativo WG75 (Bayer)_250gm. Pck | B65: =VLOOKUP(A65,'[3]Shraddha Mane_ProductLink_2021J'!$D$9:$H$179,5,0) -> NATIVO WG75 40X250GR BAG IN
A66: Nativo WG75 (Bayer)_50gm Pck | B66: =VLOOKUP(A66,'[3]Shraddha Mane_ProductLink_2021J'!$D$9:$H$179,5,0) -> NATIVO WG75 100X50GR BAG IN
A67: Oberon (T) SC240 (Bayer)_100ml. Pck | B67: =VLOOKUP(A67,'[3]Shraddha Mane_ProductLink_2021J'!$D$9:$H$179,5,0) -> OBERON (T) SC240 50X100ML BOT IN
A68: Oberon (T) Sc 240 (Bayer)_200ml. Pck | B68: =VLOOKUP(A68,'[3]Shraddha Mane_ProductLink_2021J'!$D$9:$H$179,5,0) -> OBERON (T) SC240 40X200ML BOT IN
A69: Planofix (Bayer Crop)_100ml. Pck | B69: =VLOOKUP(A69,'[3]Shraddha Mane_ProductLink_2021J'!$D$9:$H$179,5,0) -> PLANOFIX SL4 5 50X100ML BOT IN
A70: Planofix (Bayer Crop)_250ml. Pck | B70: =VLOOKUP(A70,'[3]Shraddha Mane_ProductLink_2021J'!$D$9:$H$179,5,0) -> PLANOFIX SL4 5 40X250ML BOT IN
A71: Profiler 71.1WG (Bayer)_250gm. | B71: =VLOOKUP(A71,'[3]Shraddha Mane_ProductLink_2021J'!$D$9:$H$179,5,0) -> PROFILER WG71 11 20X250GR BAG IN
A72: RAFT (Bayer)_250ml. Pck | B72: =VLOOKUP(A72,'[3]Shraddha Mane_ProductLink_2021J'!$D$9:$H$179,5,0) -> RAFT EC60 40X250ML BOT IN
A73: Raxil (Tebucona. 2%DS)_Bayer_40gm Pkt | B73: =VLOOKUP(A73,'[3]Shraddha Mane_ProductLink_2021J'!$D$9:$H$179,5,0) -> RAXIL (T) DS2 5X(25X40GR) BAG IN
A74: Regent GR (Fipronil 0.3%GR)_Bayer_1kg. | B74: =VLOOKUP(A74,'[3]Shraddha Mane_ProductLink_2021J'!$D$9:$H$179,5,0) -> REGENT GR0 3 20X1KG BAG IN
A75: Regent GR (Fipronil 0.3%GR)_Bayer_5kg . | B75: =VLOOKUP(A75,'[3]Shraddha Mane_ProductLink_2021J'!$D$9:$H$179,5,0) -> REGENT GR0 3 4X5KG BAG IN
A76: Regent SC (Fipronil 5%SC)_Bayer_100ml. | B76: =VLOOKUP(A76,'[3]Shraddha Mane_ProductLink_2021J'!$D$9:$H$179,5,0) -> REGENT (T) SC50 50X100ML BOT IN
A77: Regent SC (Fipronil 5%SC)_Bayer_1Ltr. | B77: =VLOOKUP(A77,'[3]Shraddha Mane_ProductLink_2021J'!$D$9:$H$179,5,0) -> REGENT (T) SC50 10X1L BOT IN
A78: Regent SC(Fipronil 5%SC)_Bayer_250ml. | B78: =VLOOKUP(A78,'[3]Shraddha Mane_ProductLink_2021J'!$D$9:$H$179,5,0) -> REGENT (T) SC50 20X250ML BOT IN
A79: Regent SC (Fipronil 5%SC)_Bayer_500ml. | B79: =VLOOKUP(A79,'[3]Shraddha Mane_ProductLink_2021J'!$D$9:$H$179,5,0) -> REGENT (T) SC50 20X500ML BOT IN
A80: Regent Ultra Gr (Bayer)_1kg Pck | B80: =VLOOKUP(A80,'[3]Shraddha Mane_ProductLink_2021J'!$D$9:$H$179,5,0) -> REGENT ULTRA GR0 6 20X1KG BAG IN
A81: Sectin-60WG (Bayer Crop)_100gm Pck | B81: =VLOOKUP(A81,'[3]Shraddha Mane_ProductLink_2021J'!$D$9:$H$179,5,0) -> SECTIN WG60 50X100GR BAG IN
A82: Sectin-60WG (Bayer Crop)_600gm Pck | B82: =VLOOKUP(A82,'[3]Shraddha Mane_ProductLink_2021J'!$D$9:$H$179,5,0) -> SECTIN WG60 20X600GR BAG IN
A83: Sivanto Prime SL200(Bayer) 250ml. Pck | B83: =VLOOKUP(A83,'[3]Shraddha Mane_ProductLink_2021J'!$D$9:$H$179,5,0) -> SIVANTO PRIME SL200 40X250ML BOT IN
A84: Sivanto Prime SL200 (Bayer)_500ml. | B84: =VLOOKUP(A84,'[3]Shraddha Mane_ProductLink_2021J'!$D$9:$H$179,5,0) -> SIVANTO PRIME SL200 20X500ML BOT IN
A85: Solomon OD300 (Bayer)_100ml. Pck | B85: =VLOOKUP(A85,'[3]Shraddha Mane_ProductLink_2021J'!$D$9:$H$179,5,0) -> SOLOMON OD300 50X100ML BOT IN
A86: Solomon OD300 (Bayer)_250ml. Pck | B86: =VLOOKUP(A86,'[3]Shraddha Mane_ProductLink_2021J'!$D$9:$H$179,5,0) -> SOLOMON OD300 40X250ML BOT IN
A87: Spintor SC495 (Bayer)_75ml. Pck | B87: =VLOOKUP(A87,'[3]Shraddha Mane_ProductLink_2021J'!$D$9:$H$179,5,0) -> SPINTOR SC495 20X75ML BOT IN
A88: Velum Prime (Bayer)_100ml. | B88: =VLOOKUP(A88,'[3]Shraddha Mane_ProductLink_2021J'!$D$9:$H$179,5,0) -> VELUM PRIME SC400 50X100ML BOT IN
A89: Velum Prime (Bayer)_250ml. Pck | B89: =VLOOKUP(A89,'[3]Shraddha Mane_ProductLink_2021J'!$D$9:$H$179,5,0) -> VELUM PRIME SC400 40X250ML BOT IN
A90: Velum Prime (Bayer)_500ml. Pck | B90: =VLOOKUP(A90,'[3]Shraddha Mane_ProductLink_2021J'!$D$9:$H$179,5,0) -> VELUM PRIME SC400 20X500ML BOT IN
A91: Whipsuper EC90 (Bayer)_250ml. | B91: =VLOOKUP(A91,'[3]Shraddha Mane_ProductLink_2021J'!$D$9:$H$179,5,0) -> WHIPSUPER (T) EC90 40X250ML BOT IN

Sheet Final Dealer Work
B2: PRODUCT | C2: ITEMALIAS | D2: Bpc | E2: Volume | F2: Opening Qty | G2: Purchase Qty | H2: Purchase Return Qty | I2: Sales Qty | J2: Sales Return Qty | K2: Transfer Qty | L2: Consignment Qty | M2: Adjustment Qty | N2: CLSG
B3: ADMIRE (T) WG70 150X30GR BOT IN | F3: 44 | G3: 0 | H3: 0 | I3: 4 | J3: 0 | K3: 0 | L3: 0 | M3: 0 | N3: 40
B4: ADUE WG70 15X40G BOT IN | F4: 0 | G4: 0 | H4: 0 | I4: 0 | J4: 0 | K4: 0 | L4: 0 | M4: 0 | N4: 0
B5: ADUE WG70 6X100G BOT IN | F5: 0 | G5: 0 | H5: 0 | I5: 0 | J5: 0 | K5: 0 | L5: 0 | M5: 0 | N5: 0
B6: ALANTO (T) SC240 50X100ML BOT IN | F6: 5 | G6: 0 | H6: 0 | I6: 0 | J6: 0 | K6: 0 | L6: 0 | M6: 0 | N6: 5
B7: ALIETTE WP80 20X250GR BAG IN | F7: 33 | G7: 0 | H7: 0 | I7: 21 | J7: 0 | K7: 0 | L7: 0 | M7: 0 | N7: 12
B8: ALIETTE WP80 20X500GR BAG IN | F8: 7 | G8: 0 | H8: 0 | I8: 7 | J8: 0 | K8: 0 | L8: 0 | M8: 0 | N8: 0
B9: ALIETTE WP80 40X100GR BAG IN | F9: 4.7 | G9: 0 | H9: 0 | I9: 1.2 | J9: 0 | K9: 0 | L9: 0 | M9: 0 | N9: 3.5
B10: AMBITION 10X1L BOT IN | F10: 1 | G10: 0 | H10: 0 | I10: 1 | J10: 0 | K10: 0 | L10: 0 | M10: 0 | N10: 0
B11: AMBITION 20X500ML BOT IN | F11: 0 | G11: 50 | H11: 0 | I11: 19.5 | J11: 0 | K11: 0 | L11: 0 | M11: 0 | N11: 30.5
B12: AMBITION 40X250ML BOT IN | F12: 6 | G12: 0 | H12: 0 | I12: 3.25 | J12: 0 | K12: 0 | L12: 0 | M12: 0 | N12: 2.75
B13: ANTRACOL (T) WP70 10X1KG BAG IN | F13: 0 | G13: 0 | H13: 0 | I13: 0 | J13: 0 | K13: 0 | L13: 0 | M13: 0 | N13: 0
B14: ANTRACOL (T) WP70 20X500GR BAG IN | F14: 7 | G14: 20 | H14: 0 | I14: 20 | J14: 0 | K14: 0 | L14: 0 | M14: 0 | N14: 7
B15: ANTRACOL (T) WP70 40X250GR BAG IN | F15: 0.25 | G15: 40 | H15: 0 | I15: 16.25 | J15: 0 | K15: 0 | L15: 0 | M15: 0 | N15: 24
B16: ANTRACOL (T) WP70 50X100GR BAG IN | F16: 0 | G16: 0 | H16: 0 | I16: 0 | J16: 0 | K16: 0 | L16: 0 | M16: 0 | N16: 0
B17: BELT EXPERT SC480 50X100ML BOT IN | F17: 58 | G17: 50 | H17: 0 | I17: 11 | J17: 0 | K17: 0 | L17: 0 | M17: 0 | N17: 97
B18: CONFIDOR (T) SL200 10X1L BOT IN | F18: 20 | G18: -20 | H18: 0 | I18: 0 | J18: 0 | K18: 0 | L18: 0 | M18: 0 | N18: 0
B19: CONFIDOR (T) SL200 20X250ML BOT IN | F19: 2.5 | G19: 5 | H19: 0 | I19: 3.5 | J19: 0 | K19: 0 | L19: 0 | M19: 0 | N19: 4
B20: CONFIDOR (T) SL200 20X500ML BOT IN | F20: 17.5 | G20: -10 | H20: 0 | I20: 4 | J20: 0 | K20: 0 | L20: 0 | M20: 0 | N20: 3.5
B21: DECIS EC 28 10X1L BOT IN | F21: 5 | G21: 0 | H21: 0 | I21: 2 | J21: 0 | K21: 0 | L21: 0 | M21: 0 | N21: 3
B22: DECIS EC 28 20X500ML BOT IN | F22: 16 | G22: 0 | H22: 0 | I22: 16 | J22: 0 | K22: 0 | L22: 0 | M22: 0 | N22: 0
B23: DECIS EC 28 40X250ML BOT IN | F23: 40 | G23: 0 | H23: 0 | I23: 29 | J23: 0 | K23: 0 | L23: 0 | M23: 0 | N23: 11
B24: DECIS EC 28 50X100ML BOT IN | F24: 0 | G24: 0 | H24: 0 | I24: 0 | J24: 0 | K24: 0 | L24: 0 | M24: 0 | N24: 0
B25: DECIS EC101-2 40X250ML BOT IN | F25: 0 | G25: 0 | H25: 0 | I25: 0 | J25: 0 | K25: 0 | L25: 0 | M25: 0 | N25: 0
B26: DECIS EC101-2 50X100ML BOX IN | F26: 38 | G26: 0 | H26: 0 | I26: 0 | J26: 0 | K26: 0 | L26: 0 | M26: 0 | N26: 38
B27: DISCOUNTINUE PRODUCT | F27: 0 | G27: 0 | H27: 0 | I27: 0 | J27: 0 | K27: 0 | L27: 0 | M27: 0 | N27: 0
B28: EVERGOL XTEND FS308 100X40ML BOT IN | F28: 150 | G28: 0 | H28: 0 | I28: 89 | J28: 0 | K28: 0 | L28: 0 | M28: 0 | N28: 61
B29: EVERGOL XTEND FS308 50X100ML BOT IN | F29: 92 | G29: 0 | H29: 0 | I29: 75 | J29: 0 | K29: 0 | L29: 0 | M29: 0 | N29: 17
B30: FAME (T) SC480 10X(20X10ML) BOT IN | F30: 0 | G30: 0 | H30: 0 | I30: 0 | J30: 0 | K30: 0 | L30: 0 | M30: 0 | N30: 0
B31: FAME (T) SC480 40X50ML BOT IN | F31: 76 | G31: 0 | H31: 0 | I31: 12 | J31: 0 | K31: 0 | L31: 0 | M31: 0 | N31: 64
B32: FENOS QUICK SC150 40X250ML BOT IN | F32: 0 | G32: 0 | H32: 0 | I32: 0 | J32: 0 | K32: 0 | L32: 0 | M32: 0 | N32: 0
B33: FITREST SG5 16X250GR BOT IN | F33: 0 | G33: 0 | H33: 0 | I33: 0 | J33: 0 | K33: 0 | L33: 0 | M33: 0 | N33: 0
B34: FITREST SG5 80X50GR BOT IN | F34: 0 | G34: 0 | H34: 0 | I34: 0 | J34: 0 | K34: 0 | L34: 0 | M34: 0 | N34: 0
B35: FOLICUR (T) EC250 10X1L BOT IN | F35: 17 | G35: 0 | H35: 0 | I35: 0 | J35: 0 | K35: 0 | L35: 0 | M35: 0 | N35: 17
B36: FOLICUR (T) EC250 20X500ML BOT IN | F36: 16 | G36: 0 | H36: 0 | I36: 2 | J36: 0 | K36: 0 | L36: 0 | M36: 0 | N36: 14
B37: FOLICUR (T) EC250 40X250ML BOT IN | F37: 24 | G37: 0 | H37: 0 | I37: 12 | J37: 0 | K37: 0 | L37: 0 | M37: 0 | N37: 12
B38: FOLICUR (T) EC250 50X100ML BOT IN | F38: 47 | G38: 0 | H38: 0 | I38: 23 | J38: 0 | K38: 0 | L38: 0 | M38: 0 | N38: 24
B39: FOOST WP50 24X500G BAG IN | F39: 0 | G39: 0 | H39: 0 | I39: 0 | J39: 0 | K39: 0 | L39: 0 | M39: 0 | N39: 0
B40: GAUCHO FS600 100X50ML BOT IN | F40: 30 | G40: 0 | H40: 0 | I40: 30 | J40: 0 | K40: 0 | L40: 0 | M40: 0 | N40: 0
B41: GAUCHO FS600 40X250ML BOT IN | F41: 36 | G41: 0 | H41: 0 | I41: 13 | J41: 0 | K41: 0 | L41: 0 | M41: 0 | N41: 23
B42: GAUCHO FS600 50X100ML BOT IN | F42: 50 | G42: 0 | H42: 0 | I42: 48 | J42: 0 | K42: 0 | L42: 0 | M42: 0 | N42: 2
B43: GAUCHO FS600 5X(20X9)ML BOT IN | F43: 0 | G43: 0 | H43: 0 | I43: 0 | J43: 0 | K43: 0 | L43: 0 | M43: 0 | N43: 0
B44: INFINITO SC687 5 20X500ML BOT IN | F44: 0 | G44: 10 | H44: 0 | I44: 0 | J44: 0 | K44: 0 | L44: 0 | M44: 0 | N44: 10
B45: INFINITO SC687 5 50X100ML BOT IN | F45: 0 | G45: 0 | H45: 0 | I45: 0 | J45: 0 | K45: 0 | L45: 0 | M45: 0 | N45: 0
B46: JUMP WG80 160X(10X2GR) BAG IN | F46: 1170 | G46: 0 | H46: 0 | I46: 0 | J46: 0 | K46: 0 | L46: 0 | M46: 0 | N46: 1170
B47: JUMP WG80 80X40GR BAG IN | F47: 37 | G47: 0 | H47: 0 | I47: 20 | J47: 0 | K47: 0 | L47: 0 | M47: 0 | N47: 17
B48: LARVIN (T) WP75 20X250GR BAG IN | F48: 24 | G48: 0 | H48: 0 | I48: 12 | J48: 0 | K48: 0 | L48: 0 | M48: 0 | N48: 12
B49: LARVIN (T) WP75 40X100GR BAG IN | F49: 19 | G49: 0 | H49: 0 | I49: 9 | J49: 0 | K49: 0 | L49: 0 | M49: 0 | N49: 10
B50: LAUDIS SC630 10X57.5ML BOT IN | F50: 4 | G50: 0 | H50: 0 | I50: 0 | J50: 0 | K50: 0 | L50: 0 | M50: 0 | N50: 4
B51: LESENTA WG80 100X40GR BAG IN | F51: 13 | G51: 0 | H51: 0 | I51: 13 | J51: 0 | K51: 0 | L51: 0 | M51: 0 | N51: 0
B52: LESENTA WG80 50X100GR BAG IN | F52: 0 | G52: 0 | H52: 0 | I52: 0 | J52: 0 | K52: 0 | L52: 0 | M52: 0 | N52: 0
B53: LUNA EXPERIENCE SC400 40X250ML BOT IN | F53: 0 | G53: 0 | H53: 0 | I53: 0 | J53: 0 | K53: 0 | L53: 0 | M53: 0 | N53: 0
B54: LUNA EXPERIENCE SC400 50X100ML BOT IN | F54: 23 | G54: 0 | H54: 0 | I54: 8 | J54: 0 | K54: 0 | L54: 0 | M54: 0 | N54: 15
B55: MELODY DUO WP66 8 10X400GR BAG IN | F55: 16 | G55: 10 | H55: 0 | I55: 16 | J55: 0 | K55: 0 | L55: 0 | M55: 0 | N55: 10
B56: MELODY DUO WP66 8 10X800G BAG IN | F56: 0 | G56: 10 | H56: 0 | I56: 0 | J56: 0 | K56: 0 | L56: 0 | M56: 0 | N56: 10
B57: MELODY DUO WP66 8 50X100GR BAG IN | F57: 10 | G57: 0 | H57: 0 | I57: 7 | J57: 0 | K57: 0 | L57: 0 | M57: 0 | N57: 3
B58: MILLET HYBRID 9001 20X1.5 BAG IN | F58: 0 | G58: 0 | H58: 0 | I58: 0 | J58: 0 | K58: 0 | L58: 0 | M58: 0 | N58: 0
B59: MILLET HYBRID 9444 20X1.5KG BAG IN | F59: 0 | G59: 0 | H59: 0 | I59: 0 | J59: 0 | K59: 0 | L59: 0 | M59: 0 | N59: 0
B60: MILLET HYBRID 9450 20X1 5KG BAG IN | F60: 0 | G60: 0 | H60: 0 | I60: 0 | J60: 0 | K60: 0 | L60: 0 | M60: 0 | N60: 0
B61: MOVENTO ENERGY SC240 40X250ML BOT IN | F61: 34 | G61: 0 | H61: 0 | I61: 0 | J61: 0 | K61: 0 | L61: 0 | M61: 0 | N61: 34
B62: MOVENTO ENERGY SC240 50X100ML BOT IN | F62: 1 | G62: 50 | H62: 0 | I62: 2 | J62: 0 | K62: 0 | L62: 0 | M62: 0 | N62: 49
B63: MUSTARD 5222 30X1KG BAG IN | F63: 0 | G63: 0 | H63: 0 | I63: 0 | J63: 0 | K63: 0 | L63: 0 | M63: 0 | N63: 0
B64: NATIVO WG75 100X50GR BAG IN | F64: 90 | G64: 0 | H64: 0 | I64: 83 | J64: 0 | K64: 0 | L64: 0 | M64: 0 | N64: 7
B65: NATIVO WG75 40X250GR BAG IN | F65: 32 | G65: 40 | H65: 0 | I65: 36 | J65: 0 | K65: 0 | L65: 0 | M65: 0 | N65: 36
B66: NATIVO WG75 50X100GR BAG IN | F66: 39 | G66: 150 | H66: 0 | I66: 109 | J66: 0 | K66: 0 | L66: 0 | M66: 0 | N66: 80
B67: Not Found | F67: 0 | G67: 0 | H67: 0 | I67: 0 | J67: 0 | K67: 0 | L67: 0 | M67: 0 | N67: 0
B68: OBERON (T) SC240 40X200ML BOT IN | F68: 33 | G68: 40 | H68: 0 | I68: 44 | J68: 0 | K68: 0 | L68: 0 | M68: 0 | N68: 29
B69: OBERON (T) SC240 50X100ML BOT IN | F69: 39 | G69: 0 | H69: 0 | I69: 20 | J69: 0 | K69: 0 | L69: 0 | M69: 0 | N69: 19
B70: PLANOFIX SL4 5 40X250ML BOT IN | F70: 29 | G70: 0 | H70: 0 | I70: 0 | J70: 0 | K70: 0 | L70: 0 | M70: 0 | N70: 29
B71: PLANOFIX SL4 5 50X100ML BOT IN | F71: 155 | G71: 0 | H71: 0 | I71: 119 | J71: 0 | K71: 0 | L71: 0 | M71: 0 | N71: 36
B72: PROFILER WG71 11 20X250GR BAG IN | F72: 4 | G72: 0 | H72: 0 | I72: 4 | J72: 0 | K72: 0 | L72: 0 | M72: 0 | N72: 0
B73: RAFT EC60 40X250ML BOT IN | F73: 8.25 | G73: 0 | H73: 0 | I73: 8.25 | J73: 0 | K73: 0 | L73: 0 | M73: 0 | N73: 0
B74: RAXIL (T) DS2 5X(25X40GR) BAG IN | F74: 0 | G74: 0 | H74: 0 | I74: 0 | J74: 0 | K74: 0 | L74: 0 | M74: 0 | N74: 0
B75: REGENT (T) SC50 10X1L BOT IN | F75: 77 | G75: 0 | H75: 0 | I75: 3 | J75: 0 | K75: 0 | L75: 0 | M75: 0 | N75: 74
B76: REGENT (T) SC50 20X250ML BOT IN | F76: 176 | G76: 0 | H76: 0 | I76: 42 | J76: 0 | K76: 0 | L76: 0 | M76: 0 | N76: 134
B77: REGENT (T) SC50 20X500ML BOT IN | F77: 129 | G77: 0 | H77: 0 | I77: 28 | J77: 0 | K77: 0 | L77: 0 | M77: 0 | N77: 101
B78: REGENT (T) SC50 50X100ML BOT IN | F78: 0 | G78: 0 | H78: 0 | I78: 0 | J78: 0 | K78: 0 | L78: 0 | M78: 0 | N78: 0
B79: REGENT GR0 3 20X1KG BAG IN | F79: 76 | G79: 160 | H79: 0 | I79: 147 | J79: 0 | K79: 0 | L79: 0 | M79: 0 | N79: 89
B80: REGENT GR0 3 4X5KG BAG IN | F80: 65 | G80: 740 | H80: 0 | I80: 440 | J80: 0 | K80: 0 | L80: 0 | M80: 0 | N80: 365
B81: REGENT ULTRA GR0 6 20X1KG BAG IN | F81: 0 | G81: 0 | H81: 0 | I81: 0 | J81: 0 | K81: 0 | L81: 0 | M81: 0 | N81: 0
B82: SECTIN WG60 20X600GR BAG IN | F82: 61 | G82: 0 | H82: 0 | I82: 13 | J82: 0 | K82: 0 | L82: 0 | M82: 0 | N82: 48
B83: SECTIN WG60 50X100GR BAG IN | F83: 80 | G83: 0 | H83: 0 | I83: 20 | J83: 0 | K83: 0 | L83: 0 | M83: 0 | N83: 60
B84: SIVANTO PRIME SL200 20X500ML BOT IN | F84: 0 | G84: 0 | H84: 0 | I84: 0 | J84: 0 | K84: 0 | L84: 0 | M84: 0 | N84: 0
B85: SIVANTO PRIME SL200 40X250ML BOT IN | F85: 5 | G85: 0 | H85: 0 | I85: 2.5 | J85: 0 | K85: 0 | L85: 0 | M85: 0 | N85: 2.5
B86: SOLOMON OD300 40X250ML BOT IN | F86: 76 | G86: 0 | H86: 0 | I86: 28 | J86: 0 | K86: 0 | L86: 0 | M86: 0 | N86: 48
B87: SOLOMON OD300 50X100ML BOT IN | F87: 45 | G87: 0 | H87: 0 | I87: 18 | J87: 0 | K87: 0 | L87: 0 | M87: 0 | N87: 27
B88: SPINTOR SC495 20X75ML BOT IN | F88: 11 | G88: 20 | H88: 0 | I88: 22 | J88: 0 | K88: 0 | L88: 0 | M88: 0 | N88: 9
B89: VELUM PRIME SC400 20X500ML BOT IN | F89: 11.5 | G89: 0 | H89: 0 | I89: 5 | J89: 0 | K89: 0 | L89: 0 | M89: 0 | N89: 6.5
B90: VELUM PRIME SC400 40X250ML BOT IN | F90: 12 | G90: 0 | H90: 0 | I90: 9.25 | J90: 0 | K90: 0 | L90: 0 | M90: 0 | N90: 2.75
B91: VELUM PRIME SC400 50X100ML BOT IN | F91: 0 | G91: 0 | H91: 0 | I91: 0 | J91: 0 | K91: 0 | L91: 0 | M91: 0 | N91: 0
B92: WHIPSUPER (T) EC90 40X250ML BOT IN | F92: 0 | G92: 0 | H92: 0 | I92: 0 | J92: 0 | K92: 0 | L92: 0 | M92: 0 | N92: 0
B93: Grand Total | F93: 3447.7 | G93: 1365 | H93: 0 | I93: 1750.7 | J93: 0 | K93: 0 | L93: 0 | M93: 0 | N93: 3062

Sheet Zylem SNS Report
A2: Company Name:-BAYER
A3: Stock and Sales FOR THE PERIOD 01-Jan-2020 TO 31-Mar-2020
A4: Generated on 6/16/2021 6:29:28 AM
A5: DISTRIBUTOR PRODUCTWISE
A6: OUTPUT IN : PIC,DETAILS AS : Column,CONSIDER : Voucher Date,INCLUDE VALIDATION : False
A7: DISTRIBUTOR:Kisan Trading Company,
A8: DISTRIBUTOR | B8: SAPCODE | C8: PRODUCT | D8: ITEMALIAS | E8: Opening Qty | F8: Purchase Qty | G8: Purchase Return Qty | H8: Sales Qty | I8: Sales Return Qty | J8: Transfer Qty | K8: Consignment Qty | L8: Adjustment Qty | M8: CLSG
A9: Kisan Trading Company | B9: 3815494 | C9: ADMIRE (T) WG70 150X30GR BOT IN | D9: 79234988 | E9: 44 | F9: 0 | G9: 0 | H9: 4 | I9: 0 | J9: 0 | K9: 0 | L9: 0 | M9: 40
A10: Kisan Trading Company | B10: 3815494 | C10: ALANTO (T) SC240 50X100ML BOT IN | D10: 79901062 | E10: 5 | F10: 0 | G10: 0 | H10: 0 | I10: 0 | J10: 0 | K10: 0 | L10: 0 | M10: 5
A11: Kisan Trading Company | B11: 3815494 | C11: ALIETTE WP80 20X250GR BAG IN | D11: 3822358 | E11: 33 | F11: 0 | G11: 0 | H11: 21 | I11: 0 | J11: 0 | K11: 0 | L11: 0 | M11: 12
A12: Kisan Trading Company | B12: 3815494 | C12: ALIETTE WP80 20X500GR BAG IN | D12: 3822366 | E12: 7 | F12: 0 | G12: 0 | H12: 7 | I12: 0 | J12: 0 | K12: 0 | L12: 0 | M12: 0
A13: Kisan Trading Company | B13: 3815494 | C13: ALIETTE WP80 40X100GR BAG IN | D13: 3822331 | E13: 4.7 | F13: 0 | G13: 0 | H13: 1.2 | I13: 0 | J13: 0 | K13: 0 | L13: 0 | M13: 3.5
A14: Kisan Trading Company | B14: 3815494 | C14: AMBITION 10X1L BOT IN | D14: 86212544 | E14: 1 | F14: 0 | G14: 0 | H14: 1 | I14: 0 | J14: 0 | K14: 0 | L14: 0 | M14: 0
A15: Kisan Trading Company | B15: 3815494 | C15: AMBITION 20X500ML BOT IN | D15: 86228564 | E15: 0 | F15: 50 | G15: 0 | H15: 19.5 | I15: 0 | J15: 0 | K15: 0 | L15: 0 | M15: 30.5
A16: Kisan Trading Company | B16: 3815494 | C16: AMBITION 40X250ML BOT IN | D16: 86232308 | E16: 6 | F16: 0 | G16: 0 | H16: 3.25 | I16: 0 | J16: 0 | K16: 0 | L16: 0 | M16: 2.75
A17: Kisan Trading Company | B17: 3815494 | C17: ANTRACOL (T) WP70 20X500GR BAG IN | D17: 5999978 | E17: 7 | F17: 20 | G17: 0 | H17: 20 | I17: 0 | J17: 0 | K17: 0 | L17: 0 | M17: 7
A18: Kisan Trading Company | B18: 3815494 | C18: ANTRACOL (T) WP70 40X250GR BAG IN | D18: 6112179 | E18: 0.25 | F18: 40 | G18: 0 | H18: 16.25 | I18: 0 | J18: 0 | K18: 0 | L18: 0 | M18: 24
A19: Kisan Trading Company | B19: 3815494 | C19: BELT EXPERT SC480 50X100ML BOT IN | D19: 79722869 | E19: 58 | F19: 50 | G19: 0 | H19: 15 | I19: 4 | J19: 0 | K19: 0 | L19: 0 | M19: 97
A20: Kisan Trading Company | B20: 3815494 | C20: CONFIDOR (T) SL200 10X1L BOT IN | D20: 5697343 | E20: 20 | F20: 0 | G20: 20 | H20: 0 | I20: 0 | J20: 0 | K20: 0 | L20: 0 | M20: 0
A21: Kisan Trading Company | B21: 3815494 | C21: CONFIDOR (T) SL200 20X250ML BOT IN | D21: 5699494 | E21: 2.5 | F21: 5 | G21: 0 | H21: 3.5 | I21: 0 | J21: 0 | K21: 0 | L21: 0 | M21: 4
A22: Kisan Trading Company | B22: 3815494 | C22: CONFIDOR (T) SL200 20X500ML BOT IN | D22: 5704439 | E22: 17.5 | F22: 0 | G22: 10 | H22: 4 | I22: 0 | J22: 0 | K22: 0 | L22: 0 | M22: 3.5
A23: Kisan Trading Company | B23: 3815494 | C23: DECIS EC 28 10X1L BOT IN | D23: 3823303 | E23: 5 | F23: 0 | G23: 0 | H23: 2 | I23: 0 | J23: 0 | K23: 0 | L23: 0 | M23: 3
A24: Kisan Trading Company | B24: 3815494 | C24: DECIS EC 28 20X500ML BOT IN | D24: 3823370 | E24: 16 | F24: 0 | G24: 0 | H24: 16 | I24: 0 | J24: 0 | K24: 0 | L24: 0 | M24: 0
A25: Kisan Trading Company | B25: 3815494 | C25: DECIS EC 28 40X250ML BOT IN | D25: 3823346 | E25: 40 | F25: 0 | G25: 0 | H25: 29 | I25: 0 | J25: 0 | K25: 0 | L25: 0 | M25: 11
A26: Kisan Trading Company | B26: 3815494 | C26: EVERGOL XTEND FS308 100X40ML BOT IN | D26: 85402838 | E26: 150 | F26: 0 | G26: 0 | H26: 89 | I26: 0 | J26: 0 | K26: 0 | L26: 0 | M26: 61
A27: Kisan Trading Company | B27: 3815494 | C27: EVERGOL XTEND FS308 50X100ML BOT IN | D27: 84065757 | E27: 92 | F27: 0 | G27: 0 | H27: 75 | I27: 0 | J27: 0 | K27: 0 | L27: 0 | M27: 17
A28: Kisan Trading Company | B28: 3815494 | C28: FAME (T) SC480 40X50ML BOT IN | D28: 79224699 | E28: 76 | F28: 0 | G28: 0 | H28: 12 | I28: 0 | J28: 0 | K28: 0 | L28: 0 | M28: 64
A29: Kisan Trading Company | B29: 3815494 | C29: FOLICUR (T) EC250 10X1L BOT IN | D29: 79504438 | E29: 17 | F29: 0 | G29: 0 | H29: 0 | I29: 0 | J29: 0 | K29: 0 | L29: 0 | M29: 17
A30: Kisan Trading Company | B30: 3815494 | C30: FOLICUR (T) EC250 20X500ML BOT IN | D30: 79652933 | E30: 16 | F30: 0 | G30: 0 | H30: 2 | I30: 0 | J30: 0 | K30: 0 | L30: 0 | M30: 14
A31: Kisan Trading Company | B31: 3815494 | C31: FOLICUR (T) EC250 40X250ML BOT IN | D31: 79682271 | E31: 24 | F31: 0 | G31: 0 | H31: 12 | I31: 0 | J31: 0 | K31: 0 | L31: 0 | M31: 12
A32: Kisan Trading Company | B32: 3815494 | C32: FOLICUR (T) EC250 50X100ML BOT IN | D32: 79629125 | E32: 47 | F32: 0 | G32: 0 | H32: 23 | I32: 0 | J32: 0 | K32: 0 | L32: 0 | M32: 24
A33: Kisan Trading Company | B33: 3815494 | C33: GAUCHO FS600 100X50ML BOT IN | D33: 80034733 | E33: 30 | F33: 0 | G33: 0 | H33: 30 | I33: 0 | J33: 0 | K33: 0 | L33: 0 | M33: 0
A34: Kisan Trading Company | B34: 3815494 | C34: GAUCHO FS600 40X250ML BOT IN | D34: 84995681 | E34: 36 | F34: 0 | G34: 0 | H34: 13 | I34: 0 | J34: 0 | K34: 0 | L34: 0 | M34: 23
A35: Kisan Trading Company | B35: 3815494 | C35: GAUCHO FS600 50X100ML BOT IN | D35: 79664141 | E35: 50 | F35: 0 | G35: 0 | H35: 48 | I35: 0 | J35: 0 | K35: 0 | L35: 0 | M35: 2
A36: Kisan Trading Company | B36: 3815494 | C36: INFINITO SC687 5 20X500ML BOT IN | D36: 79641176 | E36: 0 | F36: 10 | G36: 0 | H36: 0 | I36: 0 | J36: 0 | K36: 0 | L36: 0 | M36: 10
A37: Kisan Trading Company | B37: 3815494 | C37: JUMP WG80 160X(10X2GR) BAG IN | D37: 79215304 | E37: 1170 | F37: 0 | G37: 0 | H37: 0 | I37: 0 | J37: 0 | K37: 0 | L37: 0 | M37: 1170
A38: Kisan Trading Company | B38: 3815494 | C38: JUMP WG80 80X40GR BAG IN | D38: 79267509 | E38: 37 | F38: 0 | G38: 0 | H38: 20 | I38: 0 | J38: 0 | K38: 0 | L38: 0 | M38: 17
A39: Kisan Trading Company | B39: 3815494 | C39: LARVIN (T) WP75 20X250GR BAG IN | D39: 6003167 | E39: 24 | F39: 0 | G39: 0 | H39: 12 | I39: 0 | J39: 0 | K39: 0 | L39: 0 | M39: 12
A40: Kisan Trading Company | B40: 3815494 | C40: LARVIN (T) WP75 40X100GR BAG IN | D40: 5980436 | E40: 19 | F40: 0 | G40: 0 | H40: 9 | I40: 0 | J40: 0 | K40: 0 | L40: 0 | M40: 10
A41: Kisan Trading Company | B41: 3815494 | C41: LAUDIS SC630 10X57.5ML BOT IN | D41: 84470481 | E41: 4 | F41: 0 | G41: 0 | H41: 0 | I41: 0 | J41: 0 | K41: 0 | L41: 0 | M41: 4
A42: Kisan Trading Company | B42: 3815494 | C42: LESENTA WG80 100X40GR BAG IN | D42: 80500823 | E42: 13 | F42: 0 | G42: 0 | H42: 13 | I42: 0 | J42: 0 | K42: 0 | L42: 0 | M42: 0
A43: Kisan Trading Company | B43: 3815494 | C43: LUNA EXPERIENCE SC400 50X100ML BOT IN | D43: 80199414 | E43: 23 | F43: 0 | G43: 0 | H43: 8 | I43: 0 | J43: 0 | K43: 0 | L43: 0 | M43: 15
A44: Kisan Trading Company | B44: 3815494 | C44: MELODY DUO WP66 8 10X400GR BAG IN | D44: 80994974 | E44: 16 | F44: 10 | G44: 0 | H44: 16 | I44: 0 | J44: 0 | K44: 0 | L44: 0 | M44: 10
A45: Kisan Trading Company | B45: 3815494 | C45: MELODY DUO WP66 8 10X800G BAG IN | D45: 80975252 | E45: 0 | F45: 10 | G45: 0 | H45: 0 | I45: 0 | J45: 0 | K45: 0 | L45: 0 | M45: 10
A46: Kisan Trading Company | B46: 3815494 | C46: MELODY DUO WP66 8 50X100GR BAG IN | D46: 5997541 | E46: 10 | F46: 0 | G46: 0 | H46: 7 | I46: 0 | J46: 0 | K46: 0 | L46: 0 | M46: 3
A47: Kisan Trading Company | B47: 3815494 | C47: MOVENTO ENERGY SC240 40X250ML BOT IN | D47: 79679505 | E47: 34 | F47: 0 | G47: 0 | H47: 0 | I47: 0 | J47: 0 | K47: 0 | L47: 0 | M47: 34
A48: Kisan Trading Company | B48: 3815494 | C48: MOVENTO ENERGY SC240 50X100ML BOT IN | D48: 79722605 | E48: 1 | F48: 50 | G48: 0 | H48: 2 | I48: 0 | J48: 0 | K48: 0 | L48: 0 | M48: 49
A49: Kisan Trading Company | B49: 3815494 | C49: NATIVO WG75 100X50GR BAG IN | D49: 80580061 | E49: 90 | F49: 0 | G49: 0 | H49: 83 | I49: 0 | J49: 0 | K49: 0 | L49: 0 | M49: 7
A50: Kisan Trading Company | B50: 3815494 | C50: NATIVO WG75 40X250GR BAG IN | D50: 79237790 | E50: 32 | F50: 40 | G50: 0 | H50: 36 | I50: 0 | J50: 0 | K50: 0 | L50: 0 | M50: 36
A51: Kisan Trading Company | B51: 3815494 | C51: NATIVO WG75 50X100GR BAG IN | D51: 79304102 | E51: 39 | F51: 150 | G51: 0 | H51: 109 | I51: 0 | J51: 0 | K51: 0 | L51: 0 | M51: 80
A52: Kisan Trading Company | B52: 3815494 | C52: OBERON (T) SC240 40X200ML BOT IN | D52: 79971362 | E52: 33 | F52: 40 | G52: 0 | H52: 44 | I52: 0 | J52: 0 | K52: 0 | L52: 0 | M52: 29
A53: Kisan Trading Company | B53: 3815494 | C53: OBERON (T) SC240 50X100ML BOT IN | D53: 79998538 | E53: 39 | F53: 0 | G53: 0 | H53: 20 | I53: 0 | J53: 0 | K53: 0 | L53: 0 | M53: 19
A54: Kisan Trading Company | B54: 3815494 | C54: PLANOFIX SL4 5 40X250ML BOT IN | D54: 3825128 | E54: 29 | F54: 0 | G54: 0 | H54: 0 | I54: 0 | J54: 0 | K54: 0 | L54: 0 | M54: 29
A55: Kisan Trading Company | B55: 3815494 | C55: PLANOFIX SL4 5 50X100ML BOT IN | D55: 3825098 | E55: 155 | F55: 0 | G55: 0 | H55: 119 | I55: 0 | J55: 0 | K55: 0 | L55: 0 | M55: 36
A56: Kisan Trading Company | B56: 3815494 | C56: PROFILER WG71 11 20X250GR BAG IN | D56: 80532261 | E56: 4 | F56: 0 | G56: 0 | H56: 4 | I56: 0 | J56: 0 | K56: 0 | L56: 0 | M56: 0
A57: Kisan Trading Company | B57: 3815494 | C57: RAFT EC60 40X250ML BOT IN | D57: 3825330 | E57: 8.25 | F57: 0 | G57: 0 | H57: 8.25 | I57: 0 | J57: 0 | K57: 0 | L57: 0 | M57: 0
A58: Kisan Trading Company | B58: 3815494 | C58: REGENT (T) SC50 20X250ML BOT IN | D58: 5976951 | E58: 176 | F58: 0 | G58: 0 | H58: 42 | I58: 0 | J58: 0 | K58: 0 | L58: 0 | M58: 134
A59: Kisan Trading Company | B59: 3815494 | C59: REGENT (T) SC50 20X500ML BOT IN | D59: 5987678 | E59: 129 | F59: 0 | G59: 0 | H59: 28 | I59: 0 | J59: 0 | K59: 0 | L59: 0 | M59: 101
A60: Kisan Trading Company | B60: 3815494 | C60: REGENT GR0 3 20X1KG BAG IN | D60: 79667140 | E60: 76 | F60: 160 | G60: 0 | H60: 147 | I60: 0 | J60: 0 | K60: 0 | L60: 0 | M60: 89
A61: Kisan Trading Company | B61: 3815494 | C61: REGENT GR0 3 4X5KG BAG IN | D61: 80018703 | E61: 65 | F61: 740 | G61: 0 | H61: 440 | I61: 0 | J61: 0 | K61: 0 | L61: 0 | M61: 365
A62: Kisan Trading Company | B62: 3815494 | C62: SECTIN WG60 50X100GR BAG IN | D62: 5950812 | E62: 80 | F62: 0 | G62: 0 | H62: 20 | I62: 0 | J62: 0 | K62: 0 | L62: 0 | M62: 60
A63: Kisan Trading Company | B63: 3815494 | C63: SIVANTO PRIME SL200 40X250ML BOT IN | D63: 80895909 | E63: 5 | F63: 0 | G63: 0 | H63: 2.5 | I63: 0 | J63: 0 | K63: 0 | L63: 0 | M63: 2.5
A64: Kisan Trading Company | B64: 3815494 | C64: SOLOMON OD300 40X250ML BOT IN | D64: 79706723 | E64: 76 | F64: 0 | G64: 0 | H64: 28 | I64: 0 | J64: 0 | K64: 0 | L64: 0 | M64: 48
A65: Kisan Trading Company | B65: 3815494 | C65: SOLOMON OD300 50X100ML BOT IN | D65: 79641931 | E65: 45 | F65: 0 | G65: 0 | H65: 18 | I65: 0 | J65: 0 | K65: 0 | L65: 0 | M65: 27
A66: Kisan Trading Company | B66: 3815494 | C66: SPINTOR SC495 20X75ML BOT IN | D66: 3826566 | E66: 11 | F66: 20 | G66: 0 | H66: 22 | I66: 0 | J66: 0 | K66: 0 | L66: 0 | M66: 9
A67: Kisan Trading Company | B67: 3815494 | C67: VELUM PRIME SC400 20X500ML BOT IN | D67: 84407038 | E67: 11.5 | F67: 0 | G67: 0 | H67: 5 | I67: 0 | J67: 0 | K67: 0 | L67: 0 | M67: 6.5
A68: Kisan Trading Company | B68: 3815494 | C68: VELUM PRIME SC400 40X250ML BOT IN | D68: 84474886 | E68: 12 | F68: 0 | G68: 0 | H68: 9.25 | I68: 0 | J68: 0 | K68: 0 | L68: 0 | M68: 2.75
A69: Kisan Trading Company | B69: 3815494 | C69: DECIS EC101-2 50X100ML BOX IN | D69: 6103692 | E69: 38 | F69: 0 | G69: 0 | H69: 0 | I69: 0 | J69: 0 | K69: 0 | L69: 0 | M69: 38
A70: Kisan Trading Company | B70: 3815494 | C70: SECTIN WG60 20X600GR BAG IN | D70: 6000664 | E70: 61 | F70: 0 | G70: 0 | H70: 13 | I70: 0 | J70: 0 | K70: 0 | L70: 0 | M70: 48
A71: Kisan Trading Company | B71: 3815494 | C71: REGENT (T) SC50 10X1L BOT IN | D71: 5962667 | E71: 77 | F71: 0 | G71: 0 | H71: 3 | I71: 0 | J71: 0 | K71: 0 | L71: 0 | M71: 74
A72: GRANDTOTAL | E72: 3447.7 | F72: 1395 | G72: 30 | H72: 1754.7 | I72: 4 | J72: 0 | K72: 0 | L72: 0 | M72: 3062

Sheet OPG
A1: ADMIRE (T) WG70 150X30GR BOT IN | B1: =VLOOKUP(A1,'[2]Product Master Sheet'!$B$2:$F$506,5,0) -> 13 | C1: 44
A2: ALIETTE WP80 20X250GR BAG IN | B2: =VLOOKUP(A2,'[2]Product Master Sheet'!$B$2:$F$506,5,0) -> 33 | C2: 33
A3: ALIETTE WP80 20X500GR BAG IN | B3: =VLOOKUP(A3,'[2]Product Master Sheet'!$B$2:$F$506,5,0) -> 34 | C3: 7
A4: ALIETTE WP80 40X100GR BAG IN | B4: =VLOOKUP(A4,'[2]Product Master Sheet'!$B$2:$F$506,5,0) -> 35 | C4: 4.7
A5: AMBITION 10X1L BOT IN | B5: =VLOOKUP(A5,'[2]Product Master Sheet'!$B$2:$F$506,5,0) -> 39 | C5: 1
A6: AMBITION 20X500ML BOT IN | B6: =VLOOKUP(A6,'[2]Product Master Sheet'!$B$2:$F$506,5,0) -> 40 | C6: 0
A7: AMBITION 40X250ML BOT IN | B7: =VLOOKUP(A7,'[2]Product Master Sheet'!$B$2:$F$506,5,0) -> 41 | C7: 6
A8: ANTRACOL (T) WP70 20X500GR BAG IN | B8: =VLOOKUP(A8,'[2]Product Master Sheet'!$B$2:$F$506,5,0) -> 43 | C8: 7
A9: ANTRACOL (T) WP70 40X250GR BAG IN | B9: =VLOOKUP(A9,'[2]Product Master Sheet'!$B$2:$F$506,5,0) -> 44 | C9: 0.25
A10: BELT EXPERT SC480 50X100ML BOT IN | B10: =VLOOKUP(A10,'[2]Product Master Sheet'!$B$2:$F$506,5,0) -> 111 | C10: 58
A11: CONFIDOR (T) SL200 10X1L BOT IN | B11: =VLOOKUP(A11,'[2]Product Master Sheet'!$B$2:$F$506,5,0) -> 113 | C11: 20
A12: CONFIDOR (T) SL200 20X250ML BOT IN | B12: =VLOOKUP(A12,'[2]Product Master Sheet'!$B$2:$F$506,5,0) -> 114 | C12: 2.5
A13: CONFIDOR (T) SL200 20X500ML BOT IN | B13: =VLOOKUP(A13,'[2]Product Master Sheet'!$B$2:$F$506,5,0) -> 115 | C13: 17.5
A14: DECIS EC 28 10X1L BOT IN | B14: =VLOOKUP(A14,'[2]Product Master Sheet'!$B$2:$F$506,5,0) -> 124 | C14: 5
A15: DECIS EC 28 20X500ML BOT IN | B15: =VLOOKUP(A15,'[2]Product Master Sheet'!$B$2:$F$506,5,0) -> 125 | C15: 16
A16: DECIS EC 28 40X250ML BOT IN | B16: =VLOOKUP(A16,'[2]Product Master Sheet'!$B$2:$F$506,5,0) -> 126 | C16: 40
A17: EVERGOL XTEND FS308 100X40ML BOT IN | B17: =VLOOKUP(A17,'[2]Product Master Sheet'!$B$2:$F$506,5,0) -> 139 | C17: 150
A18: EVERGOL XTEND FS308 50X100ML BOT IN | B18: =VLOOKUP(A18,'[2]Product Master Sheet'!$B$2:$F$506,5,0) -> 143 | C18: 92
A19: FAME (T) SC480 40X50ML BOT IN | B19: =VLOOKUP(A19,'[2]Product Master Sheet'!$B$2:$F$506,5,0) -> 146 | C19: 76
A20: FOLICUR (T) EC250 20X500ML BOT IN | B20: =VLOOKUP(A20,'[2]Product Master Sheet'!$B$2:$F$506,5,0) -> 163 | C20: 16
A21: FOLICUR (T) EC250 40X250ML BOT IN | B21: =VLOOKUP(A21,'[2]Product Master Sheet'!$B$2:$F$506,5,0) -> 164 | C21: 24
A22: FOLICUR (T) EC250 50X100ML BOT IN | B22: =VLOOKUP(A22,'[2]Product Master Sheet'!$B$2:$F$506,5,0) -> 165 | C22: 47
A23: GAUCHO FS600 100X50ML BOT IN | B23: =VLOOKUP(A23,'[2]Product Master Sheet'!$B$2:$F$506,5,0) -> 179 | C23: 30
A24: GAUCHO FS600 40X250ML BOT IN | B24: =VLOOKUP(A24,'[2]Product Master Sheet'!$B$2:$F$506,5,0) -> 181 | C24: 36
A25: GAUCHO FS600 50X100ML BOT IN | B25: =VLOOKUP(A25,'[2]Product Master Sheet'!$B$2:$F$506,5,0) -> 182 | C25: 50
A26: INFINITO SC687 5 20X500ML BOT IN | B26: =VLOOKUP(A26,'[2]Product Master Sheet'!$B$2:$F$506,5,0) -> 195 | C26: 0
A27: JUMP WG80 80X40GR BAG IN | B27: =VLOOKUP(A27,'[2]Product Master Sheet'!$B$2:$F$506,5,0) -> 202 | C27: 37
A28: LARVIN (T) WP75 20X250GR BAG IN | B28: =VLOOKUP(A28,'[2]Product Master Sheet'!$B$2:$F$506,5,0) -> 205 | C28: 24
A29: LARVIN (T) WP75 40X100GR BAG IN | B29: =VLOOKUP(A29,'[2]Product Master Sheet'!$B$2:$F$506,5,0) -> 207 | C29: 19
A30: LESENTA WG80 100X40GR BAG IN | B30: =VLOOKUP(A30,'[2]Product Master Sheet'!$B$2:$F$506,5,0) -> 215 | C30: 13
A31: LUNA EXPERIENCE SC400 50X100ML BOT IN | B31: =VLOOKUP(A31,'[2]Product Master Sheet'!$B$2:$F$506,5,0) -> 226 | C31: 23
A32: MELODY DUO WP66 8 10X400GR BAG IN | B32: =VLOOKUP(A32,'[2]Product Master Sheet'!$B$2:$F$506,5,0) -> 228 | C32: 16
A33: MELODY DUO WP66 8 10X800G BAG IN | B33: =VLOOKUP(A33,'[2]Product Master Sheet'!$B$2:$F$506,5,0) -> 230 | C33: 0
A34: MELODY DUO WP66 8 50X100GR BAG IN | B34: =VLOOKUP(A34,'[2]Product Master Sheet'!$B$2:$F$506,5,0) -> 233 | C34: 10
A35: MOVENTO ENERGY SC240 50X100ML BOT IN | B35: =VLOOKUP(A35,'[2]Product Master Sheet'!$B$2:$F$506,5,0) -> 274 | C35: 1
A36: NATIVO WG75 100X50GR BAG IN | B36: =VLOOKUP(A36,'[2]Product Master Sheet'!$B$2:$F$506,5,0) -> 289 | C36: 90
A37: NATIVO WG75 40X250GR BAG IN | B37: =VLOOKUP(A37,'[2]Product Master Sheet'!$B$2:$F$506,5,0) -> 293 | C37: 32
A38: NATIVO WG75 50X100GR BAG IN | B38: =VLOOKUP(A38,'[2]Product Master Sheet'!$B$2:$F$506,5,0) -> 294 | C38: 39
A39: OBERON (T) SC240 40X200ML BOT IN | B39: =VLOOKUP(A39,'[2]Product Master Sheet'!$B$2:$F$506,5,0) -> 299 | C39: 33
A40: OBERON (T) SC240 50X100ML BOT IN | B40: =VLOOKUP(A40,'[2]Product Master Sheet'!$B$2:$F$506,5,0) -> 300 | C40: 39
A41: PLANOFIX SL4 5 50X100ML BOT IN | B41: =VLOOKUP(A41,'[2]Product Master Sheet'!$B$2:$F$506,5,0) -> 307 | C41: 155
A42: PROFILER WG71 11 20X250GR BAG IN | B42: =VLOOKUP(A42,'[2]Product Master Sheet'!$B$2:$F$506,5,0) -> 311 | C42: 4
A43: RAFT EC60 40X250ML BOT IN | B43: =VLOOKUP(A43,'[2]Product Master Sheet'!$B$2:$F$506,5,0) -> 315 | C43: 8.25
A44: REGENT (T) SC50 20X250ML BOT IN | B44: =VLOOKUP(A44,'[2]Product Master Sheet'!$B$2:$F$506,5,0) -> 325 | C44: 176
A45: REGENT (T) SC50 20X500ML BOT IN | B45: =VLOOKUP(A45,'[2]Product Master Sheet'!$B$2:$F$506,5,0) -> 326 | C45: 129
A46: REGENT GR0 3 20X1KG BAG IN | B46: =VLOOKUP(A46,'[2]Product Master Sheet'!$B$2:$F$506,5,0) -> 335 | C46: 76
A47: REGENT GR0 3 4X5KG BAG IN | B47: =VLOOKUP(A47,'[2]Product Master Sheet'!$B$2:$F$506,5,0) -> 336 | C47: 65
A48: SECTIN WG60 50X100GR BAG IN | B48: =VLOOKUP(A48,'[2]Product Master Sheet'!$B$2:$F$506,5,0) -> 346 | C48: 80
A49: SIVANTO PRIME SL200 40X250ML BOT IN | B49: =VLOOKUP(A49,'[2]Product Master Sheet'!$B$2:$F$506,5,0) -> 361 | C49: 5
A50: SOLOMON OD300 40X250ML BOT IN | B50: =VLOOKUP(A50,'[2]Product Master Sheet'!$B$2:$F$506,5,0) -> 368 | C50: 76
A51: SOLOMON OD300 50X100ML BOT IN | B51: =VLOOKUP(A51,'[2]Product Master Sheet'!$B$2:$F$506,5,0) -> 370 | C51: 45
A52: SPINTOR SC495 20X75ML BOT IN | B52: =VLOOKUP(A52,'[2]Product Master Sheet'!$B$2:$F$506,5,0) -> 373 | C52: 11
A53: VELUM PRIME SC400 20X500ML BOT IN | B53: =VLOOKUP(A53,'[2]Product Master Sheet'!$B$2:$F$506,5,0) -> 400 | C53: 11.5
A54: VELUM PRIME SC400 40X250ML BOT IN | B54: =VLOOKUP(A54,'[2]Product Master Sheet'!$B$2:$F$506,5,0) -> 401 | C54: 12
A55: SECTIN WG60 20X600GR BAG IN | B55: =VLOOKUP(A55,'[2]Product Master Sheet'!$B$2:$F$506,5,0) -> 345 | C55: 61
A56: REGENT (T) SC50 10X1L BOT IN | B56: =VLOOKUP(A56,'[2]Product Master Sheet'!$B$2:$F$506,5,0) -> 324 | C56: 77
A57: ADUE WG70 15X40G BOT IN | B57: =VLOOKUP(A57,'[2]Product Master Sheet'!$B$2:$F$506,5,0) -> 24 | C57: 0
A58: ADUE WG70 6X100G BOT IN | B58: =VLOOKUP(A58,'[2]Product Master Sheet'!$B$2:$F$506,5,0) -> 26 | C58: 0
A59: ALANTO (T) SC240 50X100ML BOT IN | B59: =VLOOKUP(A59,'[2]Product Master Sheet'!$B$2:$F$506,5,0) -> 30 | C59: 5
A60: ANTRACOL (T) WP70 10X1KG BAG IN | B60: =VLOOKUP(A60,'[2]Product Master Sheet'!$B$2:$F$506,5,0) -> 42 | C60: 0
A61: ANTRACOL (T) WP70 50X100GR BAG IN | B61: =VLOOKUP(A61,'[2]Product Master Sheet'!$B$2:$F$506,5,0) -> 45 | C61: 0
A62: DECIS EC 28 50X100ML BOT IN | B62: =VLOOKUP(A62,'[2]Product Master Sheet'!$B$2:$F$506,5,0) -> 928 | C62: 0
A63: DECIS EC101-2 40X250ML BOT IN | B63: =VLOOKUP(A63,'[2]Product Master Sheet'!$B$2:$F$506,5,0) -> 925 | C63: 0
A64: DECIS EC101-2 50X100ML BOX IN | B64: =VLOOKUP(A64,'[2]Product Master Sheet'!$B$2:$F$506,5,0) -> 924 | C64: 38
A65: DISCOUNTINUE PRODUCT | B65: =VLOOKUP(A65,'[2]Product Master Sheet'!$B$2:$F$506,5,0) -> 993 | C65: 0
A66: FAME (T) SC480 10X(20X10ML) BOT IN | B66: =VLOOKUP(A66,'[2]Product Master Sheet'!$B$2:$F$506,5,0) -> 144 | C66: 0
A67: FENOS QUICK SC150 40X250ML BOT IN | B67: =VLOOKUP(A67,'[2]Product Master Sheet'!$B$2:$F$506,5,0) -> 151 | C67: 0
A68: FITREST SG5 16X250GR BOT IN | B68: =VLOOKUP(A68,'[2]Product Master Sheet'!$B$2:$F$506,5,0) -> 154 | C68: 0
A69: FITREST SG5 80X50GR BOT IN | B69: =VLOOKUP(A69,'[2]Product Master Sheet'!$B$2:$F$506,5,0) -> 156 | C69: 0
A70: FOLICUR (T) EC250 10X1L BOT IN | B70: =VLOOKUP(A70,'[2]Product Master Sheet'!$B$2:$F$506,5,0) -> 162 | C70: 17
A71: FOOST WP50 24X500G BAG IN | B71: =VLOOKUP(A71,'[2]Product Master Sheet'!$B$2:$F$506,5,0) -> 177 | C71: 0
A72: GAUCHO FS600 5X(20X9)ML BOT IN | B72: =VLOOKUP(A72,'[2]Product Master Sheet'!$B$2:$F$506,5,0) -> 183 | C72: 0
A73: INFINITO SC687 5 50X100ML BOT IN | B73: =VLOOKUP(A73,'[2]Product Master Sheet'!$B$2:$F$506,5,0) -> 197 | C73: 0
A74: JUMP WG80 160X(10X2GR) BAG IN | B74: =VLOOKUP(A74,'[2]Product Master Sheet'!$B$2:$F$506,5,0) -> 199 | C74: 1170
A75: LAUDIS SC630 10X57.5ML BOT IN | B75: =VLOOKUP(A75,'[2]Product Master Sheet'!$B$2:$F$506,5,0) -> 210 | C75: 4
A76: LESENTA WG80 50X100GR BAG IN | B76: =VLOOKUP(A76,'[2]Product Master Sheet'!$B$2:$F$506,5,0) -> 219 | C76: 0
A77: LUNA EXPERIENCE SC400 40X250ML BOT IN | B77: =VLOOKUP(A77,'[2]Product Master Sheet'!$B$2:$F$506,5,0) -> 225 | C77: 0
A78: MILLET HYBRID 9001 20X1.5 BAG IN | B78: =VLOOKUP(A78,'[2]Product Master Sheet'!$B$2:$F$506,5,0) -> 236 | C78: 0
A79: MILLET HYBRID 9444 20X1.5KG BAG IN | B79: =VLOOKUP(A79,'[2]Product Master Sheet'!$B$2:$F$506,5,0) -> 243 | C79: 0
A80: MILLET HYBRID 9450 20X1 5KG BAG IN | B80: =VLOOKUP(A80,'[2]Product Master Sheet'!$B$2:$F$506,5,0) -> 251 | C80: 0
A81: MOVENTO ENERGY SC240 40X250ML BOT IN | B81: =VLOOKUP(A81,'[2]Product Master Sheet'!$B$2:$F$506,5,0) -> 273 | C81: 34
A82: MUSTARD 5222 30X1KG BAG IN | B82: =VLOOKUP(A82,'[2]Product Master Sheet'!$B$2:$F$506,5,0) -> 278 | C82: 0
A83: PLANOFIX SL4 5 40X250ML BOT IN | B83: =VLOOKUP(A83,'[2]Product Master Sheet'!$B$2:$F$506,5,0) -> 306 | C83: 29
A84: RAXIL (T) DS2 5X(25X40GR) BAG IN | B84: =VLOOKUP(A84,'[2]Product Master Sheet'!$B$2:$F$506,5,0) -> 318 | C84: 0
A85: REGENT (T) SC50 50X100ML BOT IN | B85: =VLOOKUP(A85,'[2]Product Master Sheet'!$B$2:$F$506,5,0) -> 327 | C85: 0
A86: REGENT ULTRA GR0 6 20X1KG BAG IN | B86: =VLOOKUP(A86,'[2]Product Master Sheet'!$B$2:$F$506,5,0) -> 338 | C86: 0
A87: SIVANTO PRIME SL200 20X500ML BOT IN | B87: =VLOOKUP(A87,'[2]Product Master Sheet'!$B$2:$F$506,5,0) -> 360 | C87: 0
A88: VELUM PRIME SC400 50X100ML BOT IN | B88: =VLOOKUP(A88,'[2]Product Master Sheet'!$B$2:$F$506,5,0) -> 402 | C88: 0
A89: WHIPSUPER (T) EC90 40X250ML BOT IN | B89: =VLOOKUP(A89,'[2]Product Master Sheet'!$B$2:$F$506,5,0) -> 405 | C89: 0

Sheet Reco
B1: Zylem Report -01-Jan-2020 TO 31-Mar-2020 | K1: Dealer Report -01-Jan-2020 TO 31-Mar-2020 | T1: Difference (+/-)
A3: DEALER CODE | B3: Opening Qty | C3: Purchase Qty | D3: Purchase Return Qty | E3: Sales Qty | F3: Sales Return Qty | G3: Transfer Qty | H3: Consignment Qty | I3: Adjustment Qty | J3: CLSG | K3: Opening Qty | L3: Purchase Qty | M3: Purchase Return Qty | N3: Sales Qty | O3: Sales Return Qty | P3: Transfer Qty | Q3: Consignment Qty | R3: Adjustment Qty | S3: CLSG | T3: Opening Stock Qty | U3: Purchase Qty | V3: Purchase Return Qty | W3: Sales Qty | X3: Sales Return Qty | Y3: Transfer Qty | Z3: Consignment Qty | AA3: Adjustments Qty | AB3: CLSG | AC3: Remark
A4: ADMIRE (T) WG70 150X30GR BOT IN | B4: 44 | C4: 0 | D4: 0 | E4: 4 | F4: 0 | G4: 0 | H4: 0 | I4: 0 | J4: 40 | K4: 44 | L4: 0 | M4: 0 | N4: 4 | O4: 0 | P4: 0 | Q4: 0 | R4: 0 | S4: 40 | T4: 0 | U4: 0 | V4: 0 | W4: 0 | X4: 0 | Y4: 0 | Z4: 0 | AA4: 0 | AB4: 0 | AC4: Ok
A5: ALANTO (T) SC240 50X100ML BOT IN | B5: 5 | C5: 0 | D5: 0 | E5: 0 | F5: 0 | G5: 0 | H5: 0 | I5: 0 | J5: 5 | K5: 5 | L5: 0 | M5: 0 | N5: 0 | O5: 0 | P5: 0 | Q5: 0 | R5: 0 | S5: 5 | T5: 0 | U5: 0 | V5: 0 | W5: 0 | X5: 0 | Y5: 0 | Z5: 0 | AA5: 0 | AB5: 0 | AC5: Ok
A6: ALIETTE WP80 20X250GR BAG IN | B6: 33 | C6: 0 | D6: 0 | E6: 21 | F6: 0 | G6: 0 | H6: 0 | I6: 0 | J6: 12 | K6: 33 | L6: 0 | M6: 0 | N6: 21 | O6: 0 | P6: 0 | Q6: 0 | R6: 0 | S6: 12 | T6: 0 | U6: 0 | V6: 0 | W6: 0 | X6: 0 | Y6: 0 | Z6: 0 | AA6: 0 | AB6: 0 | AC6: Ok
A7: ALIETTE WP80 20X500GR BAG IN | B7: 7 | C7: 0 | D7: 0 | E7: 7 | F7: 0 | G7: 0 | H7: 0 | I7: 0 | J7: 0 | K7: 7 | L7: 0 | M7: 0 | N7: 7 | O7: 0 | P7: 0 | Q7: 0 | R7: 0 | S7: 0 | T7: 0 | U7: 0 | V7: 0 | W7: 0 | X7: 0 | Y7: 0 | Z7: 0 | AA7: 0 | AB7: 0 | AC7: Ok
A8: ALIETTE WP80 40X100GR BAG IN | B8: 4.7 | C8: 0 | D8: 0 | E8: 1.2 | F8: 0 | G8: 0 | H8: 0 | I8: 0 | J8: 3.5 | K8: 4.7 | L8: 0 | M8: 0 | N8: 1.2 | O8: 0 | P8: 0 | Q8: 0 | R8: 0 | S8: 3.5 | T8: 0 | U8: 0 | V8: 0 | W8: 0 | X8: 0 | Y8: 0 | Z8: 0 | AA8: 0 | AB8: 0 | AC8: Ok
A9: AMBITION 10X1L BOT IN | B9: 1 | C9: 0 | D9: 0 | E9: 1 | F9: 0 | G9: 0 | H9: 0 | I9: 0 | J9: 0 | K9: 1 | L9: 0 | M9: 0 | N9: 1 | O9: 0 | P9: 0 | Q9: 0 | R9: 0 | S9: 0 | T9: 0 | U9: 0 | V9: 0 | W9: 0 | X9: 0 | Y9: 0 | Z9: 0 | AA9: 0 | AB9: 0 | AC9: Ok
A10: AMBITION 20X500ML BOT IN | B10: 0 | C10: 50 | D10: 0 | E10: 19.5 | F10: 0 | G10: 0 | H10: 0 | I10: 0 | J10: 30.5 | K10: 0 | L10: 50 | M10: 0 | N10: 19.5 | O10: 0 | P10: 0 | Q10: 0 | R10: 0 | S10: 30.5 | T10: 0 | U10: 0 | V10: 0 | W10: 0 | X10: 0 | Y10: 0 | Z10: 0 | AA10: 0 | AB10: 0 | AC10: Ok
A11: AMBITION 40X250ML BOT IN | B11: 6 | C11: 0 | D11: 0 | E11: 3.25 | F11: 0 | G11: 0 | H11: 0 | I11: 0 | J11: 2.75 | K11: 6 | L11: 0 | M11: 0 | N11: 3.25 | O11: 0 | P11: 0 | Q11: 0 | R11: 0 | S11: 2.75 | T11: 0 | U11: 0 | V11: 0 | W11: 0 | X11: 0 | Y11: 0 | Z11: 0 | AA11: 0 | AB11: 0 | AC11: Ok
A12: ANTRACOL (T) WP70 20X500GR BAG IN | B12: 7 | C12: 20 | D12: 0 | E12: 20 | F12: 0 | G12: 0 | H12: 0 | I12: 0 | J12: 7 | K12: 7 | L12: 20 | M12: 0 | N12: 20 | O12: 0 | P12: 0 | Q12: 0 | R12: 0 | S12: 7 | T12: 0 | U12: 0 | V12: 0 | W12: 0 | X12: 0 | Y12: 0 | Z12: 0 | AA12: 0 | AB12: 0 | AC12: Ok
A13: ANTRACOL (T) WP70 40X250GR BAG IN | B13: 0.25 | C13: 40 | D13: 0 | E13: 16.25 | F13: 0 | G13: 0 | H13: 0 | I13: 0 | J13: 24 | K13: 0.25 | L13: 40 | M13: 0 | N13: 16.25 | O13: 0 | P13: 0 | Q13: 0 | R13: 0 | S13: 24 | T13: 0 | U13: 0 | V13: 0 | W13: 0 | X13: 0 | Y13: 0 | Z13: 0 | AA13: 0 | AB13: 0 | AC13: Ok
A14: BELT EXPERT SC480 50X100ML BOT IN | B14: 58 | C14: 50 | D14: 0 | E14: 15 | F14: 4 | G14: 0 | H14: 0 | I14: 0 | J14: 97 | K14: 58 | L14: 50 | M14: 0 | N14: 11 | O14: 0 | P14: 0 | Q14: 0 | R14: 0 | S14: 97 | T14: 0 | U14: 0 | V14: 0 | W14: 4 | X14: 4 | Y14: 0 | Z14: 0 | AA14: 0 | AB14: 0 | AC14: Ok
A15: CONFIDOR (T) SL200 10X1L BOT IN | B15: 20 | C15: 0 | D15: 20 | E15: 0 | F15: 0 | G15: 0 | H15: 0 | I15: 0 | J15: 0 | K15: 20 | L15: -20 | M15: 0 | N15: 0 | O15: 0 | P15: 0 | Q15: 0 | R15: 0 | S15: 0 | T15: 0 | U15: 20 | V15: 20 | W15: 0 | X15: 0 | Y15: 0 | Z15: 0 | AA15: 0 | AB15: 0 | AC15: Ok
A16: CONFIDOR (T) SL200 20X250ML BOT IN | B16: 2.5 | C16: 5 | D16: 0 | E16: 3.5 | F16: 0 | G16: 0 | H16: 0 | I16: 0 | J16: 4 | K16: 2.5 | L16: 5 | M16: 0 | N16: 3.5 | O16: 0 | P16: 0 | Q16: 0 | R16: 0 | S16: 4 | T16: 0 | U16: 0 | V16: 0 | W16: 0 | X16: 0 | Y16: 0 | Z16: 0 | AA16: 0 | AB16: 0 | AC16: Ok
A17: CONFIDOR (T) SL200 20X500ML BOT IN | B17: 17.5 | C17: 0 | D17: 10 | E17: 4 | F17: 0 | G17: 0 | H17: 0 | I17: 0 | J17: 3.5 | K17: 17.5 | L17: -10 | M17: 0 | N17: 4 | O17: 0 | P17: 0 | Q17: 0 | R17: 0 | S17: 3.5 | T17: 0 | U17: 10 | V17: 10 | W17: 0 | X17: 0 | Y17: 0 | Z17: 0 | AA17: 0 | AB17: 0 | AC17: Ok
A18: DECIS EC 28 10X1L BOT IN | B18: 5 | C18: 0 | D18: 0 | E18: 2 | F18: 0 | G18: 0 | H18: 0 | I18: 0 | J18: 3 | K18: 5 | L18: 0 | M18: 0 | N18: 2 | O18: 0 | P18: 0 | Q18: 0 | R18: 0 | S18: 3 | T18: 0 | U18: 0 | V18: 0 | W18: 0 | X18: 0 | Y18: 0 | Z18: 0 | AA18: 0 | AB18: 0 | AC18: Ok
A19: DECIS EC 28 20X500ML BOT IN | B19: 16 | C19: 0 | D19: 0 | E19: 16 | F19: 0 | G19: 0 | H19: 0 | I19: 0 | J19: 0 | K19: 16 | L19: 0 | M19: 0 | N19: 16 | O19: 0 | P19: 0 | Q19: 0 | R19: 0 | S19: 0 | T19: 0 | U19: 0 | V19: 0 | W19: 0 | X19: 0 | Y19: 0 | Z19: 0 | AA19: 0 | AB19: 0 | AC19: Ok
A20: DECIS EC 28 40X250ML BOT IN | B20: 40 | C20: 0 | D20: 0 | E20: 29 | F20: 0 | G20: 0 | H20: 0 | I20: 0 | J20: 11 | K20: 40 | L20: 0 | M20: 0 | N20: 29 | O20: 0 | P20: 0 | Q20: 0 | R20: 0 | S20: 11 | T20: 0 | U20: 0 | V20: 0 | W20: 0 | X20: 0 | Y20: 0 | Z20: 0 | AA20: 0 | AB20: 0 | AC20: Ok
A21: EVERGOL XTEND FS308 100X40ML BOT IN | B21: 150 | C21: 0 | D21: 0 | E21: 89 | F21: 0 | G21: 0 | H21: 0 | I21: 0 | J21: 61 | K21: 150 | L21: 0 | M21: 0 | N21: 89 | O21: 0 | P21: 0 | Q21: 0 | R21: 0 | S21: 61 | T21: 0 | U21: 0 | V21: 0 | W21: 0 | X21: 0 | Y21: 0 | Z21: 0 | AA21: 0 | AB21: 0 | AC21: Ok
A22: EVERGOL XTEND FS308 50X100ML BOT IN | B22: 92 | C22: 0 | D22: 0 | E22: 75 | F22: 0 | G22: 0 | H22: 0 | I22: 0 | J22: 17 | K22: 92 | L22: 0 | M22: 0 | N22: 75 | O22: 0 | P22: 0 | Q22: 0 | R22: 0 | S22: 17 | T22: 0 | U22: 0 | V22: 0 | W22: 0 | X22: 0 | Y22: 0 | Z22: 0 | AA22: 0 | AB22: 0 | AC22: Ok
A23: FAME (T) SC480 40X50ML BOT IN | B23: 76 | C23: 0 | D23: 0 | E23: 12 | F23: 0 | G23: 0 | H23: 0 | I23: 0 | J23: 64 | K23: 76 | L23: 0 | M23: 0 | N23: 12 | O23: 0 | P23: 0 | Q23: 0 | R23: 0 | S23: 64 | T23: 0 | U23: 0 | V23: 0 | W23: 0 | X23: 0 | Y23: 0 | Z23: 0 | AA23: 0 | AB23: 0 | AC23: Ok
A24: FOLICUR (T) EC250 10X1L BOT IN | B24: 17 | C24: 0 | D24: 0 | E24: 0 | F24: 0 | G24: 0 | H24: 0 | I24: 0 | J24: 17 | K24: 17 | L24: 0 | M24: 0 | N24: 0 | O24: 0 | P24: 0 | Q24: 0 | R24: 0 | S24: 17 | T24: 0 | U24: 0 | V24: 0 | W24: 0 | X24: 0 | Y24: 0 | Z24: 0 | AA24: 0 | AB24: 0 | AC24: Ok
A25: FOLICUR (T) EC250 20X500ML BOT IN | B25: 16 | C25: 0 | D25: 0 | E25: 2 | F25: 0 | G25: 0 | H25: 0 | I25: 0 | J25: 14 | K25: 16 | L25: 0 | M25: 0 | N25: 2 | O25: 0 | P25: 0 | Q25: 0 | R25: 0 | S25: 14 | T25: 0 | U25: 0 | V25: 0 | W25: 0 | X25: 0 | Y25: 0 | Z25: 0 | AA25: 0 | AB25: 0 | AC25: Ok
A26: FOLICUR (T) EC250 40X250ML BOT IN | B26: 24 | C26: 0 | D26: 0 | E26: 12 | F26: 0 | G26: 0 | H26: 0 | I26: 0 | J26: 12 | K26: 24 | L26: 0 | M26: 0 | N26: 12 | O26: 0 | P26: 0 | Q26: 0 | R26: 0 | S26: 12 | T26: 0 | U26: 0 | V26: 0 | W26: 0 | X26: 0 | Y26: 0 | Z26: 0 | AA26: 0 | AB26: 0 | AC26: Ok
A27: FOLICUR (T) EC250 50X100ML BOT IN | B27: 47 | C27: 0 | D27: 0 | E27: 23 | F27: 0 | G27: 0 | H27: 0 | I27: 0 | J27: 24 | K27: 47 | L27: 0 | M27: 0 | N27: 23 | O27: 0 | P27: 0 | Q27: 0 | R27: 0 | S27: 24 | T27: 0 | U27: 0 | V27: 0 | W27: 0 | X27: 0 | Y27: 0 | Z27: 0 | AA27: 0 | AB27: 0 | AC27: Ok
A28: GAUCHO FS600 100X50ML BOT IN | B28: 30 | C28: 0 | D28: 0 | E28: 30 | F28: 0 | G28: 0 | H28: 0 | I28: 0 | J28: 0 | K28: 30 | L28: 0 | M28: 0 | N28: 30 | O28: 0 | P28: 0 | Q28: 0 | R28: 0 | S28: 0 | T28: 0 | U28: 0 | V28: 0 | W28: 0 | X28: 0 | Y28: 0 | Z28: 0 | AA28: 0 | AB28: 0 | AC28: Ok
A29: GAUCHO FS600 40X250ML BOT IN | B29: 36 | C29: 0 | D29: 0 | E29: 13 | F29: 0 | G29: 0 | H29: 0 | I29: 0 | J29: 23 | K29: 36 | L29: 0 | M29: 0 | N29: 13 | O29: 0 | P29: 0 | Q29: 0 | R29: 0 | S29: 23 | T29: 0 | U29: 0 | V29: 0 | W29: 0 | X29: 0 | Y29: 0 | Z29: 0 | AA29: 0 | AB29: 0 | AC29: Ok
A30: GAUCHO FS600 50X100ML BOT IN | B30: 50 | C30: 0 | D30: 0 | E30: 48 | F30: 0 | G30: 0 | H30: 0 | I30: 0 | J30: 2 | K30: 50 | L30: 0 | M30: 0 | N30: 48 | O30: 0 | P30: 0 | Q30: 0 | R30: 0 | S30: 2 | T30: 0 | U30: 0 | V30: 0 | W30: 0 | X30: 0 | Y30: 0 | Z30: 0 | AA30: 0 | AB30: 0 | AC30: Ok
A31: INFINITO SC687 5 20X500ML BOT IN | B31: 0 | C31: 10 | D31: 0 | E31: 0 | F31: 0 | G31: 0 | H31: 0 | I31: 0 | J31: 10 | K31: 0 | L31: 10 | M31: 0 | N31: 0 | O31: 0 | P31: 0 | Q31: 0 | R31: 0 | S31: 10 | T31: 0 | U31: 0 | V31: 0 | W31: 0 | X31: 0 | Y31: 0 | Z31: 0 | AA31: 0 | AB31: 0 | AC31: Ok
A32: JUMP WG80 160X(10X2GR) BAG IN | B32: 1170 | C32: 0 | D32: 0 | E32: 0 | F32: 0 | G32: 0 | H32: 0 | I32: 0 | J32: 1170 | K32: 1170 | L32: 0 | M32: 0 | N32: 0 | O32: 0 | P32: 0 | Q32: 0 | R32: 0 | S32: 1170 | T32: 0 | U32: 0 | V32: 0 | W32: 0 | X32: 0 | Y32: 0 | Z32: 0 | AA32: 0 | AB32: 0 | AC32: Ok
A33: JUMP WG80 80X40GR BAG IN | B33: 37 | C33: 0 | D33: 0 | E33: 20 | F33: 0 | G33: 0 | H33: 0 | I33: 0 | J33: 17 | K33: 37 | L33: 0 | M33: 0 | N33: 20 | O33: 0 | P33: 0 | Q33: 0 | R33: 0 | S33: 17 | T33: 0 | U33: 0 | V33: 0 | W33: 0 | X33: 0 | Y33: 0 | Z33: 0 | AA33: 0 | AB33: 0 | AC33: Ok
A34: LARVIN (T) WP75 20X250GR BAG IN | B34: 24 | C34: 0 | D34: 0 | E34: 12 | F34: 0 | G34: 0 | H34: 0 | I34: 0 | J34: 12 | K34: 24 | L34: 0 | M34: 0 | N34: 12 | O34: 0 | P34: 0 | Q34: 0 | R34: 0 | S34: 12 | T34: 0 | U34: 0 | V34: 0 | W34: 0 | X34: 0 | Y34: 0 | Z34: 0 | AA34: 0 | AB34: 0 | AC34: Ok
A35: LARVIN (T) WP75 40X100GR BAG IN | B35: 19 | C35: 0 | D35: 0 | E35: 9 | F35: 0 | G35: 0 | H35: 0 | I35: 0 | J35: 10 | K35: 19 | L35: 0 | M35: 0 | N35: 9 | O35: 0 | P35: 0 | Q35: 0 | R35: 0 | S35: 10 | T35: 0 | U35: 0 | V35: 0 | W35: 0 | X35: 0 | Y35: 0 | Z35: 0 | AA35: 0 | AB35: 0 | AC35: Ok
A36: LAUDIS SC630 10X57.5ML BOT IN | B36: 4 | C36: 0 | D36: 0 | E36: 0 | F36: 0 | G36: 0 | H36: 0 | I36: 0 | J36: 4 | K36: 4 | L36: 0 | M36: 0 | N36: 0 | O36: 0 | P36: 0 | Q36: 0 | R36: 0 | S36: 4 | T36: 0 | U36: 0 | V36: 0 | W36: 0 | X36: 0 | Y36: 0 | Z36: 0 | AA36: 0 | AB36: 0 | AC36: Ok
A37: LESENTA WG80 100X40GR BAG IN | B37: 13 | C37: 0 | D37: 0 | E37: 13 | F37: 0 | G37: 0 | H37: 0 | I37: 0 | J37: 0 | K37: 13 | L37: 0 | M37: 0 | N37: 13 | O37: 0 | P37: 0 | Q37: 0 | R37: 0 | S37: 0 | T37: 0 | U37: 0 | V37: 0 | W37: 0 | X37: 0 | Y37: 0 | Z37: 0 | AA37: 0 | AB37: 0 | AC37: Ok
A38: LUNA EXPERIENCE SC400 50X100ML BOT IN | B38: 23 | C38: 0 | D38: 0 | E38: 8 | F38: 0 | G38: 0 | H38: 0 | I38: 0 | J38: 15 | K38: 23 | L38: 0 | M38: 0 | N38: 8 | O38: 0 | P38: 0 | Q38: 0 | R38: 0 | S38: 15 | T38: 0 | U38: 0 | V38: 0 | W38: 0 | X38: 0 | Y38: 0 | Z38: 0 | AA38: 0 | AB38: 0 | AC38: Ok
A39: MELODY DUO WP66 8 10X400GR BAG IN | B39: 16 | C39: 10 | D39: 0 | E39: 16 | F39: 0 | G39: 0 | H39: 0 | I39: 0 | J39: 10 | K39: 16 | L39: 10 | M39: 0 | N39: 16 | O39: 0 | P39: 0 | Q39: 0 | R39: 0 | S39: 10 | T39: 0 | U39: 0 | V39: 0 | W39: 0 | X39: 0 | Y39: 0 | Z39: 0 | AA39: 0 | AB39: 0 | AC39: Ok
A40: MELODY DUO WP66 8 10X800G BAG IN | B40: 0 | C40: 10 | D40: 0 | E40: 0 | F40: 0 | G40: 0 | H40: 0 | I40: 0 | J40: 10 | K40: 0 | L40: 10 | M40: 0 | N40: 0 | O40: 0 | P40: 0 | Q40: 0 | R40: 0 | S40: 10 | T40: 0 | U40: 0 | V40: 0 | W40: 0 | X40: 0 | Y40: 0 | Z40: 0 | AA40: 0 | AB40: 0 | AC40: Ok
A41: MELODY DUO WP66 8 50X100GR BAG IN | B41: 10 | C41: 0 | D41: 0 | E41: 7 | F41: 0 | G41: 0 | H41: 0 | I41: 0 | J41: 3 | K41: 10 | L41: 0 | M41: 0 | N41: 7 | O41: 0 | P41: 0 | Q41: 0 | R41: 0 | S41: 3 | T41: 0 | U41: 0 | V41: 0 | W41: 0 | X41: 0 | Y41: 0 | Z41: 0 | AA41: 0 | AB41: 0 | AC41: Ok
A42: MOVENTO ENERGY SC240 40X250ML BOT IN | B42: 34 | C42: 0 | D42: 0 | E42: 0 | F42: 0 | G42: 0 | H42: 0 | I42: 0 | J42: 34 | K42: 34 | L42: 0 | M42: 0 | N42: 0 | O42: 0 | P42: 0 | Q42: 0 | R42: 0 | S42: 34 | T42: 0 | U42: 0 | V42: 0 | W42: 0 | X42: 0 | Y42: 0 | Z42: 0 | AA42: 0 | AB42: 0 | AC42: Ok
A43: MOVENTO ENERGY SC240 50X100ML BOT IN | B43: 1 | C43: 50 | D43: 0 | E43: 2 | F43: 0 | G43: 0 | H43: 0 | I43: 0 | J43: 49 | K43: 1 | L43: 50 | M43: 0 | N43: 2 | O43: 0 | P43: 0 | Q43: 0 | R43: 0 | S43: 49 | T43: 0 | U43: 0 | V43: 0 | W43: 0 | X43: 0 | Y43: 0 | Z43: 0 | AA43: 0 | AB43: 0 | AC43: Ok
A44: NATIVO WG75 100X50GR BAG IN | B44: 90 | C44: 0 | D44: 0 | E44: 83 | F44: 0 | G44: 0 | H44: 0 | I44: 0 | J44: 7 | K44: 90 | L44: 0 | M44: 0 | N44: 83 | O44: 0 | P44: 0 | Q44: 0 | R44: 0 | S44: 7 | T44: 0 | U44: 0 | V44: 0 | W44: 0 | X44: 0 | Y44: 0 | Z44: 0 | AA44: 0 | AB44: 0 | AC44: Ok
A45: NATIVO WG75 40X250GR BAG IN | B45: 32 | C45: 40 | D45: 0 | E45: 36 | F45: 0 | G45: 0 | H45: 0 | I45: 0 | J45: 36 | K45: 32 | L45: 40 | M45: 0 | N45: 36 | O45: 0 | P45: 0 | Q45: 0 | R45: 0 | S45: 36 | T45: 0 | U45: 0 | V45: 0 | W45: 0 | X45: 0 | Y45: 0 | Z45: 0 | AA45: 0 | AB45: 0 | AC45: Ok
A46: NATIVO WG75 50X100GR BAG IN | B46: 39 | C46: 150 | D46: 0 | E46: 109 | F46: 0 | G46: 0 | H46: 0 | I46: 0 | J46: 80 | K46: 39 | L46: 150 | M46: 0 | N46: 109 | O46: 0 | P46: 0 | Q46: 0 | R46: 0 | S46: 80 | T46: 0 | U46: 0 | V46: 0 | W46: 0 | X46: 0 | Y46: 0 | Z46: 0 | AA46: 0 | AB46: 0 | AC46: Ok
A47: OBERON (T) SC240 40X200ML BOT IN | B47: 33 | C47: 40 | D47: 0 | E47: 44 | F47: 0 | G47: 0 | H47: 0 | I47: 0 | J47: 29 | K47: 33 | L47: 40 | M47: 0 | N47: 44 | O47: 0 | P47: 0 | Q47: 0 | R47: 0 | S47: 29 | T47: 0 | U47: 0 | V47: 0 | W47: 0 | X47: 0 | Y47: 0 | Z47: 0 | AA47: 0 | AB47: 0 | AC47: Ok
A48: OBERON (T) SC240 50X100ML BOT IN | B48: 39 | C48: 0 | D48: 0 | E48: 20 | F48: 0 | G48: 0 | H48: 0 | I48: 0 | J48: 19 | K48: 39 | L48: 0 | M48: 0 | N48: 20 | O48: 0 | P48: 0 | Q48: 0 | R48: 0 | S48: 19 | T48: 0 | U48: 0 | V48: 0 | W48: 0 | X48: 0 | Y48: 0 | Z48: 0 | AA48: 0 | AB48: 0 | AC48: Ok
A49: PLANOFIX SL4 5 40X250ML BOT IN | B49: 29 | C49: 0 | D49: 0 | E49: 0 | F49: 0 | G49: 0 | H49: 0 | I49: 0 | J49: 29 | K49: 29 | L49: 0 | M49: 0 | N49: 0 | O49: 0 | P49: 0 | Q49: 0 | R49: 0 | S49: 29 | T49: 0 | U49: 0 | V49: 0 | W49: 0 | X49: 0 | Y49: 0 | Z49: 0 | AA49: 0 | AB49: 0 | AC49: Ok
A50: PLANOFIX SL4 5 50X100ML BOT IN | B50: 155 | C50: 0 | D50: 0 | E50: 119 | F50: 0 | G50: 0 | H50: 0 | I50: 0 | J50: 36 | K50: 155 | L50: 0 | M50: 0 | N50: 119 | O50: 0 | P50: 0 | Q50: 0 | R50: 0 | S50: 36 | T50: 0 | U50: 0 | V50: 0 | W50: 0 | X50: 0 | Y50: 0 | Z50: 0 | AA50: 0 | AB50: 0 | AC50: Ok
A51: PROFILER WG71 11 20X250GR BAG IN | B51: 4 | C51: 0 | D51: 0 | E51: 4 | F51: 0 | G51: 0 | H51: 0 | I51: 0 | J51: 0 | K51: 4 | L51: 0 | M51: 0 | N51: 4 | O51: 0 | P51: 0 | Q51: 0 | R51: 0 | S51: 0 | T51: 0 | U51: 0 | V51: 0 | W51: 0 | X51: 0 | Y51: 0 | Z51: 0 | AA51: 0 | AB51: 0 | AC51: Ok
A52: RAFT EC60 40X250ML BOT IN | B52: 8.25 | C52: 0 | D52: 0 | E52: 8.25 | F52: 0 | G52: 0 | H52: 0 | I52: 0 | J52: 0 | K52: 8.25 | L52: 0 | M52: 0 | N52: 8.25 | O52: 0 | P52: 0 | Q52: 0 | R52: 0 | S52: 0 | T52: 0 | U52: 0 | V52: 0 | W52: 0 | X52: 0 | Y52: 0 | Z52: 0 | AA52: 0 | AB52: 0 | AC52: Ok
A53: REGENT (T) SC50 20X250ML BOT IN | B53: 176 | C53: 0 | D53: 0 | E53: 42 | F53: 0 | G53: 0 | H53: 0 | I53: 0 | J53: 134 | K53: 176 | L53: 0 | M53: 0 | N53: 42 | O53: 0 | P53: 0 | Q53: 0 | R53: 0 | S53: 134 | T53: 0 | U53: 0 | V53: 0 | W53: 0 | X53: 0 | Y53: 0 | Z53: 0 | AA53: 0 | AB53: 0 | AC53: Ok
A54: REGENT (T) SC50 20X500ML BOT IN | B54: 129 | C54: 0 | D54: 0 | E54: 28 | F54: 0 | G54: 0 | H54: 0 | I54: 0 | J54: 101 | K54: 129 | L54: 0 | M54: 0 | N54: 28 | O54: 0 | P54: 0 | Q54: 0 | R54: 0 | S54: 101 | T54: 0 | U54: 0 | V54: 0 | W54: 0 | X54: 0 | Y54: 0 | Z54: 0 | AA54: 0 | AB54: 0 | AC54: Ok
A55: REGENT GR0 3 20X1KG BAG IN | B55: 76 | C55: 160 | D55: 0 | E55: 147 | F55: 0 | G55: 0 | H55: 0 | I55: 0 | J55: 89 | K55: 76 | L55: 160 | M55: 0 | N55: 147 | O55: 0 | P55: 0 | Q55: 0 | R55: 0 | S55: 89 | T55: 0 | U55: 0 | V55: 0 | W55: 0 | X55: 0 | Y55: 0 | Z55: 0 | AA55: 0 | AB55: 0 | AC55: Ok
A56: REGENT GR0 3 4X5KG BAG IN | B56: 65 | C56: 740 | D56: 0 | E56: 440 | F56: 0 | G56: 0 | H56: 0 | I56: 0 | J56: 365 | K56: 65 | L56: 740 | M56: 0 | N56: 440 | O56: 0 | P56: 0 | Q56: 0 | R56: 0 | S56: 365 | T56: 0 | U56: 0 | V56: 0 | W56: 0 | X56: 0 | Y56: 0 | Z56: 0 | AA56: 0 | AB56: 0 | AC56: Ok
A57: SECTIN WG60 50X100GR BAG IN | B57: 80 | C57: 0 | D57: 0 | E57: 20 | F57: 0 | G57: 0 | H57: 0 | I57: 0 | J57: 60 | K57: 80 | L57: 0 | M57: 0 | N57: 20 | O57: 0 | P57: 0 | Q57: 0 | R57: 0 | S57: 60 | T57: 0 | U57: 0 | V57: 0 | W57: 0 | X57: 0 | Y57: 0 | Z57: 0 | AA57: 0 | AB57: 0 | AC57: Ok
A58: SIVANTO PRIME SL200 40X250ML BOT IN | B58: 5 | C58: 0 | D58: 0 | E58: 2.5 | F58: 0 | G58: 0 | H58: 0 | I58: 0 | J58: 2.5 | K58: 5 | L58: 0 | M58: 0 | N58: 2.5 | O58: 0 | P58: 0 | Q58: 0 | R58: 0 | S58: 2.5 | T58: 0 | U58: 0 | V58: 0 | W58: 0 | X58: 0 | Y58: 0 | Z58: 0 | AA58: 0 | AB58: 0 | AC58: Ok
A59: SOLOMON OD300 40X250ML BOT IN | B59: 76 | C59: 0 | D59: 0 | E59: 28 | F59: 0 | G59: 0 | H59: 0 | I59: 0 | J59: 48 | K59: 76 | L59: 0 | M59: 0 | N59: 28 | O59: 0 | P59: 0 | Q59: 0 | R59: 0 | S59: 48 | T59: 0 | U59: 0 | V59: 0 | W59: 0 | X59: 0 | Y59: 0 | Z59: 0 | AA59: 0 | AB59: 0 | AC59: Ok
A60: SOLOMON OD300 50X100ML BOT IN | B60: 45 | C60: 0 | D60: 0 | E60: 18 | F60: 0 | G60: 0 | H60: 0 | I60: 0 | J60: 27 | K60: 45 | L60: 0 | M60: 0 | N60: 18 | O60: 0 | P60: 0 | Q60: 0 | R60: 0 | S60: 27 | T60: 0 | U60: 0 | V60: 0 | W60: 0 | X60: 0 | Y60: 0 | Z60: 0 | AA60: 0 | AB60: 0 | AC60: Ok
A61: SPINTOR SC495 20X75ML BOT IN | B61: 11 | C61: 20 | D61: 0 | E61: 22 | F61: 0 | G61: 0 | H61: 0 | I61: 0 | J61: 9 | K61: 11 | L61: 20 | M61: 0 | N61: 22 | O61: 0 | P61: 0 | Q61: 0 | R61: 0 | S61: 9 | T61: 0 | U61: 0 | V61: 0 | W61: 0 | X61: 0 | Y61: 0 | Z61: 0 | AA61: 0 | AB61: 0 | AC61: Ok
A62: VELUM PRIME SC400 20X500ML BOT IN | B62: 11.5 | C62: 0 | D62: 0 | E62: 5 | F62: 0 | G62: 0 | H62: 0 | I62: 0 | J62: 6.5 | K62: 11.5 | L62: 0 | M62: 0 | N62: 5 | O62: 0 | P62: 0 | Q62: 0 | R62: 0 | S62: 6.5 | T62: 0 | U62: 0 | V62: 0 | W62: 0 | X62: 0 | Y62: 0 | Z62: 0 | AA62: 0 | AB62: 0 | AC62: Ok
A63: VELUM PRIME SC400 40X250ML BOT IN | B63: 12 | C63: 0 | D63: 0 | E63: 9.25 | F63: 0 | G63: 0 | H63: 0 | I63: 0 | J63: 2.75 | K63: 12 | L63: 0 | M63: 0 | N63: 9.25 | O63: 0 | P63: 0 | Q63: 0 | R63: 0 | S63: 2.75 | T63: 0 | U63: 0 | V63: 0 | W63: 0 | X63: 0 | Y63: 0 | Z63: 0 | AA63: 0 | AB63: 0 | AC63: Ok
A64: DECIS EC101-2 50X100ML BOX IN | B64: 38 | C64: 0 | D64: 0 | E64: 0 | F64: 0 | G64: 0 | H64: 0 | I64: 0 | J64: 38 | K64: 38 | L64: 0 | M64: 0 | N64: 0 | O64: 0 | P64: 0 | Q64: 0 | R64: 0 | S64: 38 | T64: 0 | U64: 0 | V64: 0 | W64: 0 | X64: 0 | Y64: 0 | Z64: 0 | AA64: 0 | AB64: 0 | AC64: Ok
A65: SECTIN WG60 20X600GR BAG IN | B65: 61 | C65: 0 | D65: 0 | E65: 13 | F65: 0 | G65: 0 | H65: 0 | I65: 0 | J65: 48 | K65: 61 | L65: 0 | M65: 0 | N65: 13 | O65: 0 | P65: 0 | Q65: 0 | R65: 0 | S65: 48 | T65: 0 | U65: 0 | V65: 0 | W65: 0 | X65: 0 | Y65: 0 | Z65: 0 | AA65: 0 | AB65: 0 | AC65: Ok
A66: REGENT (T) SC50 10X1L BOT IN | B66: 77 | C66: 0 | D66: 0 | E66: 3 | F66: 0 | G66: 0 | H66: 0 | I66: 0 | J66: 74 | K66: 77 | L66: 0 | M66: 0 | N66: 3 | O66: 0 | P66: 0 | Q66: 0 | R66: 0 | S66: 74 | T66: 0 | U66: 0 | V66: 0 | W66: 0 | X66: 0 | Y66: 0 | Z66: 0 | AA66: 0 | AB66: 0 | AC66: Ok
A67: ADUE WG70 15X40G BOT IN | B67: 0 | C67: 0 | D67: 0 | E67: 0 | F67: 0 | G67: 0 | H67: 0 | I67: 0 | J67: 0 | K67: 0 | L67: 0 | M67: 0 | N67: 0 | O67: 0 | P67: 0 | Q67: 0 | R67: 0 | S67: 0 | T67: 0 | U67: 0 | V67: 0 | W67: 0 | X67: 0 | Y67: 0 | Z67: 0 | AA67: 0 | AB67: 0 | AC67: Ok
A68: ADUE WG70 6X100G BOT IN | B68: 0 | C68: 0 | D68: 0 | E68: 0 | F68: 0 | G68: 0 | H68: 0 | I68: 0 | J68: 0 | K68: 0 | L68: 0 | M68: 0 | N68: 0 | O68: 0 | P68: 0 | Q68: 0 | R68: 0 | S68: 0 | T68: 0 | U68: 0 | V68: 0 | W68: 0 | X68: 0 | Y68: 0 | Z68: 0 | AA68: 0 | AB68: 0 | AC68: Ok
A69: ANTRACOL (T) WP70 10X1KG BAG IN | B69: 0 | C69: 0 | D69: 0 | E69: 0 | F69: 0 | G69: 0 | H69: 0 | I69: 0 | J69: 0 | K69: 0 | L69: 0 | M69: 0 | N69: 0 | O69: 0 | P69: 0 | Q69: 0 | R69: 0 | S69: 0 | T69: 0 | U69: 0 | V69: 0 | W69: 0 | X69: 0 | Y69: 0 | Z69: 0 | AA69: 0 | AB69: 0 | AC69: Ok
A70: ANTRACOL (T) WP70 50X100GR BAG IN | B70: 0 | C70: 0 | D70: 0 | E70: 0 | F70: 0 | G70: 0 | H70: 0 | I70: 0 | J70: 0 | K70: 0 | L70: 0 | M70: 0 | N70: 0 | O70: 0 | P70: 0 | Q70: 0 | R70: 0 | S70: 0 | T70: 0 | U70: 0 | V70: 0 | W70: 0 | X70: 0 | Y70: 0 | Z70: 0 | AA70: 0 | AB70: 0 | AC70: Ok
A71: DECIS EC 28 50X100ML BOT IN | B71: 0 | C71: 0 | D71: 0 | E71: 0 | F71: 0 | G71: 0 | H71: 0 | I71: 0 | J71: 0 | K71: 0 | L71: 0 | M71: 0 | N71: 0 | O71: 0 | P71: 0 | Q71: 0 | R71: 0 | S71: 0 | T71: 0 | U71: 0 | V71: 0 | W71: 0 | X71: 0 | Y71: 0 | Z71: 0 | AA71: 0 | AB71: 0 | AC71: Ok
A72: DECIS EC101-2 40X250ML BOT IN | B72: 0 | C72: 0 | D72: 0 | E72: 0 | F72: 0 | G72: 0 | H72: 0 | I72: 0 | J72: 0 | K72: 0 | L72: 0 | M72: 0 | N72: 0 | O72: 0 | P72: 0 | Q72: 0 | R72: 0 | S72: 0 | T72: 0 | U72: 0 | V72: 0 | W72: 0 | X72: 0 | Y72: 0 | Z72: 0 | AA72: 0 | AB72: 0 | AC72: Ok
A73: DISCOUNTINUE PRODUCT | B73: 0 | C73: 0 | D73: 0 | E73: 0 | F73: 0 | G73: 0 | H73: 0 | I73: 0 | J73: 0 | K73: 0 | L73: 0 | M73: 0 | N73: 0 | O73: 0 | P73: 0 | Q73: 0 | R73: 0 | S73: 0 | T73: 0 | U73: 0 | V73: 0 | W73: 0 | X73: 0 | Y73: 0 | Z73: 0 | AA73: 0 | AB73: 0 | AC73: Ok
A74: FAME (T) SC480 10X(20X10ML) BOT IN | B74: 0 | C74: 0 | D74: 0 | E74: 0 | F74: 0 | G74: 0 | H74: 0 | I74: 0 | J74: 0 | K74: 0 | L74: 0 | M74: 0 | N74: 0 | O74: 0 | P74: 0 | Q74: 0 | R74: 0 | S74: 0 | T74: 0 | U74: 0 | V74: 0 | W74: 0 | X74: 0 | Y74: 0 | Z74: 0 | AA74: 0 | AB74: 0 | AC74: Ok
A75: FENOS QUICK SC150 40X250ML BOT IN | B75: 0 | C75: 0 | D75: 0 | E75: 0 | F75: 0 | G75: 0 | H75: 0 | I75: 0 | J75: 0 | K75: 0 | L75: 0 | M75: 0 | N75: 0 | O75: 0 | P75: 0 | Q75: 0 | R75: 0 | S75: 0 | T75: 0 | U75: 0 | V75: 0 | W75: 0 | X75: 0 | Y75: 0 | Z75: 0 | AA75: 0 | AB75: 0 | AC75: Ok
A76: FITREST SG5 16X250GR BOT IN | B76: 0 | C76: 0 | D76: 0 | E76: 0 | F76: 0 | G76: 0 | H76: 0 | I76: 0 | J76: 0 | K76: 0 | L76: 0 | M76: 0 | N76: 0 | O76: 0 | P76: 0 | Q76: 0 | R76: 0 | S76: 0 | T76: 0 | U76: 0 | V76: 0 | W76: 0 | X76: 0 | Y76: 0 | Z76: 0 | AA76: 0 | AB76: 0 | AC76: Ok
A77: FITREST SG5 80X50GR BOT IN | B77: 0 | C77: 0 | D77: 0 | E77: 0 | F77: 0 | G77: 0 | H77: 0 | I77: 0 | J77: 0 | K77: 0 | L77: 0 | M77: 0 | N77: 0 | O77: 0 | P77: 0 | Q77: 0 | R77: 0 | S77: 0 | T77: 0 | U77: 0 | V77: 0 | W77: 0 | X77: 0 | Y77: 0 | Z77: 0 | AA77: 0 | AB77: 0 | AC77: Ok
A78: FOOST WP50 24X500G BAG IN | B78: 0 | C78: 0 | D78: 0 | E78: 0 | F78: 0 | G78: 0 | H78: 0 | I78: 0 | J78: 0 | K78: 0 | L78: 0 | M78: 0 | N78: 0 | O78: 0 | P78: 0 | Q78: 0 | R78: 0 | S78: 0 | T78: 0 | U78: 0 | V78: 0 | W78: 0 | X78: 0 | Y78: 0 | Z78: 0 | AA78: 0 | AB78: 0 | AC78: Ok
A79: GAUCHO FS600 5X(20X9)ML BOT IN | B79: 0 | C79: 0 | D79: 0 | E79: 0 | F79: 0 | G79: 0 | H79: 0 | I79: 0 | J79: 0 | K79: 0 | L79: 0 | M79: 0 | N79: 0 | O79: 0 | P79: 0 | Q79: 0 | R79: 0 | S79: 0 | T79: 0 | U79: 0 | V79: 0 | W79: 0 | X79: 0 | Y79: 0 | Z79: 0 | AA79: 0 | AB79: 0 | AC79: Ok
A80: INFINITO SC687 5 50X100ML BOT IN | B80: 0 | C80: 0 | D80: 0 | E80: 0 | F80: 0 | G80: 0 | H80: 0 | I80: 0 | J80: 0 | K80: 0 | L80: 0 | M80: 0 | N80: 0 | O80: 0 | P80: 0 | Q80: 0 | R80: 0 | S80: 0 | T80: 0 | U80: 0 | V80: 0 | W80: 0 | X80: 0 | Y80: 0 | Z80: 0 | AA80: 0 | AB80: 0 | AC80: Ok
A81: LESENTA WG80 50X100GR BAG IN | B81: 0 | C81: 0 | D81: 0 | E81: 0 | F81: 0 | G81: 0 | H81: 0 | I81: 0 | J81: 0 | K81: 0 | L81: 0 | M81: 0 | N81: 0 | O81: 0 | P81: 0 | Q81: 0 | R81: 0 | S81: 0 | T81: 0 | U81: 0 | V81: 0 | W81: 0 | X81: 0 | Y81: 0 | Z81: 0 | AA81: 0 | AB81: 0 | AC81: Ok
A82: LUNA EXPERIENCE SC400 40X250ML BOT IN | B82: 0 | C82: 0 | D82: 0 | E82: 0 | F82: 0 | G82: 0 | H82: 0 | I82: 0 | J82: 0 | K82: 0 | L82: 0 | M82: 0 | N82: 0 | O82: 0 | P82: 0 | Q82: 0 | R82: 0 | S82: 0 | T82: 0 | U82: 0 | V82: 0 | W82: 0 | X82: 0 | Y82: 0 | Z82: 0 | AA82: 0 | AB82: 0 | AC82: Ok
A83: MILLET HYBRID 9001 20X1.5 BAG IN | B83: 0 | C83: 0 | D83: 0 | E83: 0 | F83: 0 | G83: 0 | H83: 0 | I83: 0 | J83: 0 | K83: 0 | L83: 0 | M83: 0 | N83: 0 | O83: 0 | P83: 0 | Q83: 0 | R83: 0 | S83: 0 | T83: 0 | U83: 0 | V83: 0 | W83: 0 | X83: 0 | Y83: 0 | Z83: 0 | AA83: 0 | AB83: 0 | AC83: Ok
A84: MILLET HYBRID 9444 20X1.5KG BAG IN | B84: 0 | C84: 0 | D84: 0 | E84: 0 | F84: 0 | G84: 0 | H84: 0 | I84: 0 | J84: 0 | K84: 0 | L84: 0 | M84: 0 | N84: 0 | O84: 0 | P84: 0 | Q84: 0 | R84: 0 | S84: 0 | T84: 0 | U84: 0 | V84: 0 | W84: 0 | X84: 0 | Y84: 0 | Z84: 0 | AA84: 0 | AB84: 0 | AC84: Ok
A85: MILLET HYBRID 9450 20X1 5KG BAG IN | B85: 0 | C85: 0 | D85: 0 | E85: 0 | F85: 0 | G85: 0 | H85: 0 | I85: 0 | J85: 0 | K85: 0 | L85: 0 | M85: 0 | N85: 0 | O85: 0 | P85: 0 | Q85: 0 | R85: 0 | S85: 0 | T85: 0 | U85: 0 | V85: 0 | W85: 0 | X85: 0 | Y85: 0 | Z85: 0 | AA85: 0 | AB85: 0 | AC85: Ok
A86: MUSTARD 5222 30X1KG BAG IN | B86: 0 | C86: 0 | D86: 0 | E86: 0 | F86: 0 | G86: 0 | H86: 0 | I86: 0 | J86: 0 | K86: 0 | L86: 0 | M86: 0 | N86: 0 | O86: 0 | P86: 0 | Q86: 0 | R86: 0 | S86: 0 | T86: 0 | U86: 0 | V86: 0 | W86: 0 | X86: 0 | Y86: 0 | Z86: 0 | AA86: 0 | AB86: 0 | AC86: Ok
A87: RAXIL (T) DS2 5X(25X40GR) BAG IN | B87: 0 | C87: 0 | D87: 0 | E87: 0 | F87: 0 | G87: 0 | H87: 0 | I87: 0 | J87: 0 | K87: 0 | L87: 0 | M87: 0 | N87: 0 | O87: 0 | P87: 0 | Q87: 0 | R87: 0 | S87: 0 | T87: 0 | U87: 0 | V87: 0 | W87: 0 | X87: 0 | Y87: 0 | Z87: 0 | AA87: 0 | AB87: 0 | AC87: Ok
A88: REGENT (T) SC50 50X100ML BOT IN | B88: 0 | C88: 0 | D88: 0 | E88: 0 | F88: 0 | G88: 0 | H88: 0 | I88: 0 | J88: 0 | K88: 0 | L88: 0 | M88: 0 | N88: 0 | O88: 0 | P88: 0 | Q88: 0 | R88: 0 | S88: 0 | T88: 0 | U88: 0 | V88: 0 | W88: 0 | X88: 0 | Y88: 0 | Z88: 0 | AA88: 0 | AB88: 0 | AC88: Ok
A89: REGENT ULTRA GR0 6 20X1KG BAG IN | B89: 0 | C89: 0 | D89: 0 | E89: 0 | F89: 0 | G89: 0 | H89: 0 | I89: 0 | J89: 0 | K89: 0 | L89: 0 | M89: 0 | N89: 0 | O89: 0 | P89: 0 | Q89: 0 | R89: 0 | S89: 0 | T89: 0 | U89: 0 | V89: 0 | W89: 0 | X89: 0 | Y89: 0 | Z89: 0 | AA89: 0 | AB89: 0 | AC89: Ok
A90: SIVANTO PRIME SL200 20X500ML BOT IN | B90: 0 | C90: 0 | D90: 0 | E90: 0 | F90: 0 | G90: 0 | H90: 0 | I90: 0 | J90: 0 | K90: 0 | L90: 0 | M90: 0 | N90: 0 | O90: 0 | P90: 0 | Q90: 0 | R90: 0 | S90: 0 | T90: 0 | U90: 0 | V90: 0 | W90: 0 | X90: 0 | Y90: 0 | Z90: 0 | AA90: 0 | AB90: 0 | AC90: Ok
A91: VELUM PRIME SC400 50X100ML BOT IN | B91: 0 | C91: 0 | D91: 0 | E91: 0 | F91: 0 | G91: 0 | H91: 0 | I91: 0 | J91: 0 | K91: 0 | L91: 0 | M91: 0 | N91: 0 | O91: 0 | P91: 0 | Q91: 0 | R91: 0 | S91: 0 | T91: 0 | U91: 0 | V91: 0 | W91: 0 | X91: 0 | Y91: 0 | Z91: 0 | AA91: 0 | AB91: 0 | AC91: Ok
A92: WHIPSUPER (T) EC90 40X250ML BOT IN | B92: 0 | C92: 0 | D92: 0 | E92: 0 | F92: 0 | G92: 0 | H92: 0 | I92: 0 | J92: 0 | K92: 0 | L92: 0 | M92: 0 | N92: 0 | O92: 0 | P92: 0 | Q92: 0 | R92: 0 | S92: 0 | T92: 0 | U92: 0 | V92: 0 | W92: 0 | X92: 0 | Y92: 0 | Z92: 0 | AA92: 0 | AB92: 0 | AC92: Ok
A93: Total | B93: 3447.7 | C93: 1395 | D93: 30 | E93: 1754.7 | F93: 4 | G93: 0 | H93: 0 | I93: 0 | J93: 3062 | K93: 3447.7 | L93: 1365 | M93: 0 | N93: 1750.7 | O93: 0 | P93: 0 | Q93: 0 | R93: 0 | S93: 3062 | T93: 0 | U93: 30 | V93: 30 | W93: 4 | X93: 4 | Y93: 0 | Z93: 0 | AA93: 0 | AB93: 0
